{"text_format":"1","workbook":"xlsx","n_sheets":7,"sheets":["Inicio","Foco de análisis","Nivel de madurez","Matriz","Matriz de procesos-Gráfica","Brechas","Variables"],"not_rendered":{"charts":4,"images":3,"macros":1,"external_links":0,"defined_names":13,"comments":0,"pivot_tables":0},"unopened":[],"bounds":{"document_bytes":16777216,"sheet_cells":100000,"rows_first":2000,"rows_last":500,"rows_between":2000,"halvings":0,"cell_chars":16384,"cell_head_chars":4096},"cells_cut":0,"cells_raw":0,"read":"whole","date_system":"1900"}

{"sheet":"Inicio","index":0,"n_rows":25,"n_cols":2,"rows_kept":25,"cut":false,"hidden":false,"merged":[[2,1,2,11],[18,1,18,11],[19,1,20,11],[24,1,29,11],[11,1,14,11]]}
[]
[]
[null,"UNIVERSIDAD DEL ROSARIO "]
[]
[]
[]
[]
[]
[]
[]
[]
[null,"Modelo de implementación de procesos de TI\nHERRAMIENTA \"MIXTI\""]
[]
[]
[]
[]
[]
[]
[null,"Estudiante:"]
[null,"Andrea Paola Páez Ruiz \nFredy Vivas Hernández"]
[]
[]
[]
[]
[null,"PROYECTO DE INVESTIGACIÓN \n“MODELO PARA LA DEFINICIÓN E IMPLEMENTACIÓN DE PROCESOS DE GOBIERNO DE TECNOLOGÍAS DE LA INFORMACIÓN APLICADO A CENIT TRANSPORTE Y LOGÍSTICA DE HIDROCARBUROS S.A.S”\nBogotá D.C.\nNoviembre 2015"]

{"sheet":"Foco de análisis","index":1,"n_rows":30,"n_cols":4,"rows_kept":30,"cut":false,"hidden":false,"merged":[[29,1,37,3],[1,1,1,3],[20,1,20,3],[3,1,3,3],[5,1,8,1],[9,1,10,1],[9,2,10,2],[11,1,15,1],[17,1,17,3],[18,1,18,3]]}
[]
[null,"FOCO DE ANALISIS"]
[]
[null,"SITUACIÓN ACTUAL /OPORTUNIDADES DE MEJORA"]
[null,"Categoría","Estado Actual","Estado Objetivo"]
[null,"Estrategia","1.    Poca alineación de TI con los negocios.","1.   Alineación de la estrategia de TI con la estrategia de negocio."]
[null,null,"2.    Plan estratégico de TI con visión a dos años y vigente hasta el 2014.","2.   Plan estratégico de TI con visión mínima a tres años."]
[null,null,"3.    Foco en la implementación de soluciones tecnológicas.","3.   Iniciativas que mejoren el gobierno, los procesos, la compañía, el talento humano y la arquitectura de tecnología."]
[null,null,"4.    Ausencia de iniciativas de seguridad y privacidad de la información.","4.   Iniciativas de seguridad y privacidad de acuerdo a la legislación vigente."]
[null,"Arquitectura Empresarial","1.   Ausencia de arquitectura empresarial.","1.   Arquitectura objetivo definida."]
[null,null,null,"2.    Arquitectura objetivo  implementada."]
[null,"Procesos","1.   Definición de indicadores de tecnología mezclados con los de la Gerencia administrativa.","1.   Indicadores  y tableros de mando separados."]
[null,null,"2.   Perfiles de líder y coordinador de TI.","2.   Estructura organizacional para el área de TI."]
[null,null,"3.   Procesos básicos documentados y no formalizados.","3.   Mapa de procesos mínimos de TI estandarizados, documentados y  formalizados."]
[null,null,"4.   Servicios tercerizados y ausencia de documentación de los procesos.","4.   Procesos documentados brindados por  los terceros."]
[null,null,"5.   Procesos básicos  informales basados en buenas prácticas de TI.","5.   Procesos alineados con marcos de referencia y buenas prácticas en gobierno y gestión de TI debidamente  documentados y formalizados."]
[]
[null,"NECESIDAD PRIMARIA"]
[null,"Establecer e implementar los procesos de gobierno y gestión estratégicos para el fortalecimiento de las actividades  relacionadas con la alineación, planeación y gobierno de TI del área de tecnología"]
[]
[null,"RELEVANCIA DE LOS DOMINIOS DE COBIT"]
[null,"DOMINIO","DESCRIPCION DEL DOMINIO","NIVEL DE RELEVANCIA"]
[null,"APO","Gestionar:  Alinear, Planificar y Organizar",10]
[null,"BAI","Gestionar: Construir, adquirir e implementar",7]
[null,"DSS","Operar la TI: Entrega, Servicio y Soporte",3]
[null,"EDM","Asegurar: Evaluar, Orientar y Supervisar",5]
[null,"MEA","Monitorear: Supervisar, Evaluar y Valorar",1]
[]
[null,"Instrucciones:"]
[null,"1. Teniendo en cuenta la situación actual, establezca las categorías, el estado actual y el estado al que se quiere llegar.\n2. Describa de manera concreta la necesidad básica o primaria que se va a tene en cuenta para el análisis y valoración de los procesos.\n3. Seleccione el nivel de relevancia de cada dominio de procesos de COBIT teniendo en cuenta las dos puntos anteriores. La relevancia de los dominios de los procesos está ubicada en una escala entre 1 y 10. Siendo 1 el dominio con la menor relevancia y 10 con la mayor relevancia."]

{"sheet":"Nivel de madurez","index":2,"n_rows":39,"n_cols":6,"rows_kept":39,"cut":false,"hidden":false,"merged":[[0,0,0,5]]}
["NIVEL DE MADUREZ DE LOS PROCESOS DE COBIT"]
["DOMINIO","PROCESO","NOMBRE PROCESO","PROPOSITO","NIVEL ACTUAL ","NIVEL OBJETIVO"]
["APO","APO01","APO01 Gestionar el marco de Gestión de TI","Proporcionar un enfoque de gestión consistente que permita cumplir los requisitos de gobierno corporativo e incluya procesos de gestión, estructuras, roles y responsabilidades organizativos, actividades fiables y reproducibles y habilidades y competencias.",0,2]
["APO","APO02","APO02 Gestionar la estrategia","Alinear los planes estratégicos de TI con los objetivos del negocio. Comunicar claramente los objetivos y las cuentas asociadas para que sean\ncomprendidos por todos, con la identificación de las opciones estratégicas de TI, estructurados e integrados con los planes de negocio.",0,2]
["APO","APO03","APO03 Gestionar la Arquitectura Empresarial","Representar a los diferentes módulos que componen la empresa y sus interrelaciones, así como los principios rectores de su diseño y evolución en el tiempo, permitiendo una entrega estándar, sensible y eficiente de los objetivos operativos y estratégicos.",0,1]
["APO","APO04","APO04 Gestionar la Innovación","Lograr ventaja competitiva, innovación empresarial y eficacia y eficiencia operativa mejorada mediante la explotación de los desarrollos tecnológicos para la explotación de la información.",0,1]
["APO","APO05","APO05 Gestionar portafolio","Optimizar el rendimiento del portafolio global de programas en respuesta al rendimiento de programas y servicios y a las cambiantes prioridades y demandas corporativas",0,2]
["APO","APO06","APO06 Gestionar el presupuesto y los costes","Fomentar la colaboración entre TI y las partes interesadas de la empresa para catalizar el uso eficaz y eficiente de los recursos relacionados con las TI y brindar transparencia y responsabilidad sobre el coste y valor de negocio de soluciones y servicios. Permitir a la empresa tomar decisiones informadas con respecto a la utilización de soluciones y servicios de TI.",2,5]
["APO","APO07","APO07 Gestionar los recursos Humanos","Optimizar las capacidades de recursos humanos para cumplir los objetivos de la empresa.",1,2]
["APO","APO08","APO08 Gestionar las Relaciones","Crear mejores resultados, mayor confianza en la tecnología y conseguir un uso efectivo de los recursos.",1,2]
["APO","APO09","APO09 Gestionar los Acuerdos de Servicio","Asegurar que los servicios TI y los niveles de servicio cubren las necesidades presentes y futuras de la empresa.",3,4]
["APO","APO10","APO10 Gestionar los proveedores","Minimizar el riesgo de proveedores que no rindan y asegurar precios competitivos.",0,2]
["APO","APO11","APO11 Gestionar la calidad","Asegurar la entrega consistente de soluciones y servicios que cumplan con los requisitos de la organización y que satisfagan las necesidades de las partes interesadas.",2,3]
["APO","APO12","APO12 Gestionar el Riesgo","Integrar la gestión de riesgos empresariales relacionados con TI con la gestión de riesgos empresarial general (ERM) y equilibrar los costes y beneficios de gestionar riesgos empresariales relacionados con TI.",4,5]
["APO","APO13","APO13 Gestionar la seguridad","Mantener el impacto y ocurrencia de los incidentes de la seguridad de la información dentro de los niveles de apetito de riesgo de la empresa.",1,2]
["BAI","BAI01","BAI01 Gestionar los programas y Proyectos","Alcanzar los beneficios de negocio y reducir el riesgo de retrasos y costes inesperados y el deterioro del valor, mediante la mejora de las comunicaciones y la involucración de usuarios finales y de negocio, asegurando el valor y la calidad de los entregables del proyecto y maximizando su contribución al portafolio de servicios e inversiones.",1,3]
["BAI","BAI02","BAI02 Gestionar la definición de requisitos","Crear soluciones viables y óptimas que cumplan con las necesidades de la organización mientras minimizan el riesgo.",3,4]
["BAI","BAI03","BAI03 Gestionar la identificación y la construcción de Soluciones","Establecer soluciones puntuales y rentables capaces de soportar la estrategia de negocio y objetivos operacionales.",2,3]
["BAI","BAI04","BAI04 Gestionar la disponibilidad y la Capacidad","Mantener la disponibilidad del servicio, la gestión eficiente de recursos y la optimización del rendimiento de los sistemas mediante la predicción del rendimiento futuro y de los requerimientos de capacidad.",1,2]
["BAI","BAI05","BAI05 Gestionar la introducción de cambios organizativos","Preparar y comprometer a las partes interesadas para el cambio en el negocio y reducir el riesgo de fracaso.",5,5]
["BAI","BAI06","BAI06 Gestionar los cambios","Posibilitar una entrega de los cambios rápida y fiable para el negocio, a la vez que se mitiga cualquier riesgo que impacte negativamente en la\nestabilidad e integridad del entorno en que se aplica el cambio.",4,5]
["BAI","BAI07","BAI07 Gestionar la aceptación del cambio y de la transición","Implementar soluciones de forma segura y en línea con las expectativas y resultados acordados.",1,2]
["BAI","BAI08","BAI08 Gestionar el Conocimiento","Proporcionar el conocimiento necesario para dar soporte a todo el personal en sus actividades laborales, para la toma de decisiones bien fundadas y para aumentar la productividad.",0,1]
["BAI","BAI09","BAI09 Gestionar los activos","Contabilización de todos los activos de TI y optimización del valor proporcionado por estos activos.",1,2]
["BAI","BAI10","BAI10 Gestionar la Configuración","Proporcionar suficiente información sobre los activos del servicio para que el servicio pueda gestionarse con eficacia, evaluar el impacto de los cambios y hacer frente a los incidentes del servicio.",1,3]
["DSS","DSS01","DSS01 Gestionar las operaciones","Entregar los resultados del servicio operativo de TI, según lo planificado.",3,4]
["DSS","DSS02","DSS02 Gestionar las peticiones y los incidentes del servicio","Lograr una mayor productividad y minimizar las interrupciones mediante la rápida resolución de consultas de usuario e incidentes.",2,3]
["DSS","DSS03","DSS03 Gestionar los problemas","Incrementar la disponibilidad, mejorar los niveles de servicio, reducir costes, y mejorar la comodidad y satisfacción del cliente reduciendo el número de\nproblemas operativos.",0,1]
["DSS","DSS04","DSS04 Gestionar la continuidad","Continuar las operaciones críticas para el negocio y mantener la disponibilidad de la información a un nivel aceptable para la empresa ante el evento de\nuna interrupción significativa.",1,2]
["DSS","DSS05","DSS05 Gestionar los servicios de Seguridad","Minimizar el impacto en el negocio de las vulnerabilidades e incidentes operativos de seguridad en la información.",1,3]
["DSS","DSS06","DSS06 Gestionar los controles de los procesos del negocio","Mantener la integridad de la información y la seguridad de los activos de información manejados en los procesos de negocio dentro de la empresa o\nexternalizados.",0,1]
["EDM","EDM01","EDM01 Asegurar el establecimiento y Mantenimiento del marco de Gobierno","Proporcionar un enfoque consistente, integrado y alineado con el alcance del gobierno de la empresa. Para garantizar que las decisiones relativas\na TI se han adoptado en línea con las estrategias y objetivos de la empresa, garantizando la supervisión de los procesos de manera efectiva y transparentemente, el cumplimiento con los requerimientos regulatorios y legales y que se han alcanzado los requerimientos de gobierno de los\nmiembros del Consejo de Administración.",0,2]
["EDM","EDM02","EDM02 Asegurar la entrega de beneficios","Asegurar un valor óptimo de las iniciativas de TI, servicios y activos disponibles; una entrega coste eficiente de los servicios y soluciones y una visión\nconfiable y precisa de los costes y de los beneficios probables de manera que las necesidades del negocio sean soportadas efectiva y eficientemente.",1,2]
["EDM","EDM03","EDM03 Asegurar la optimización del riesgo","Asegurar que los riesgos relacionados con TI de la empresa no exceden ni el apetito ni la toleración de riesgo, que el impacto de los riesgos de TI en el valor de la empresa se identifica y se gestiona y que el potencial fallo en el cumplimiento se reduce al mínimo.",3,4]
["EDM","EDM04","EDM04 Asegurar la optimización de los recursos","Asegurar que las necesidades de recursos de la empresa son cubiertas de un modo óptimo, que el coste TI es optimizado y que con ello se incrementa \nla probabilidad de la obtención de beneficios y la reparación para cambios futuros.",1,3]
["EDM","EDM05","EDM05 Asegurar la Transparencia hacia las partes interesadas","Asegurar que la comunicación con las partes interesadas sea efectiva y oportuna y que se ha establecido una base para la elaboración de informes con el fin de aumentar el desempeño, identificar áreas susceptibles de mejora y confirmar que las estrategias y los objetivos relacionados con TI concuerdan con la estrategia corporativa.",2,3]
["MEA","MEA01","MEA01 Supervisar, evaluar y valorar rendimiento y Conformidad","Proporcionar transparencia de rendimiento y conformidad y conducción hacia la obtención de los objetivos.",2,3]
["MEA","MEA02","MEA02 Supervisar, evaluar y Valorar el sistema de control interno","Ofrecer transparencia a las partes interesadas claves respecto de la adecuación del sistema de control interno para generar confianza en las\noperaciones, en el logro de los objetivos de la compañía y un entendimiento adecuado del riesgo residual.",4,4]
["MEA","MEA03","MEA03 Supervisar, Evaluar y Valorar la conformidad con los requerimientos Externos","Asegurar que la empresa cumple con todos los requisitos externos que le sean aplicables.",4,5]

{"sheet":"Matriz","index":3,"n_rows":47,"n_cols":21,"rows_kept":47,"cut":false,"hidden":false,"merged":[[0,10,0,13],[0,5,0,9],[0,14,0,19],[0,0,0,4]]}
["INFORMACIÓN BASE DEL PROCESO",null,null,null,null,"NIVEL DE APORTE",null,null,null,null,"NIVEL DE IMPORTANCIA",null,null,null,"NIVEL DE ESFUERZO",null,null,null,null,null,"CLASIFICACION"]
["DOMINIO","PROCESO","NOMBRE PROCESO","PROPOSITO","NIVEL ACTUAL COBIT ","APORTE AL FOCO SEGÚN PROPOSITO","PESO DEL APORTE AL FOCO","NUMERO DE PRACTICAS","PESO SEGUN NUMERO DE PRACTICAS","NIVEL DE APORTE","JUICIO EXPERTO NI","PESO POR DOMINIO","PESO POR EXPERTO","VALOR IMPORTANCIA","JUICIO EXPERTO NE","PESO POR JUICIO EXPERTOS","PESO POR PRACTICAS","VALOR POR ESFUERZO","TAMAÑO E","NIVEL OBJETIVO COBIT","CUADRANTE"]
["APO","APO01","APO01 Gestionar el marco de gestión de TI","Proporcionar un enfoque de gestión consistente que permita cumplir los requisitos de gobierno corporativo e incluya procesos de gestión, estructuras, roles y responsabilidades organizativos, actividades fiables y reproducibles y habilidades y competencias.",{"$f":"'Nivel de madurez'!E3","v":0},"DIRECTO",{"$f":"VLOOKUP(Tabla1[[#This Row],[APORTE AL FOCO SEGÚN PROPOSITO]],Variables!$E$13:$F$15,2,1)","v":10},8,{"$f":"IF(Tabla1[[#This Row],[NUMERO DE PRACTICAS]]<=4,Variables!$F$18,IF(Tabla1[[#This Row],[NUMERO DE PRACTICAS]]<=7,Variables!$F$17,Variables!$F$16))","v":8},{"$f":"Tabla1[[#This Row],[PESO DEL APORTE AL FOCO]]*Variables!$D$13+Tabla1[[#This Row],[PESO SEGUN NUMERO DE PRACTICAS]]*Variables!$D$16","v":9.1999999999999993},"ALTO",{"$f":"VLOOKUP(Tabla1[[#This Row],[DOMINIO]],Variables!$E$4:$F$8,2,1)","v":10},{"$f":"VLOOKUP(Tabla1[[#This Row],[JUICIO EXPERTO NI]],Variables!$E$9:$F$11,2,1)","v":9},{"$f":"Tabla1[[#This Row],[PESO POR DOMINIO]]*Variables!$D$4+Tabla1[[#This Row],[PESO POR EXPERTO]]*Variables!$D$9","v":9.5},"ALTO",{"$f":"VLOOKUP(Tabla1[[#This Row],[JUICIO EXPERTO NE]],Variables!$E$20:$F$22,2,1)","v":10},{"$f":"IF(Tabla1[[#This Row],[NUMERO DE PRACTICAS]]<=4,Variables!$F$25,IF(Tabla1[[#This Row],[NUMERO DE PRACTICAS]]<=7,Variables!$F$24,Variables!$F$23))","v":8},{"$f":"Tabla1[[#This Row],[PESO POR JUICIO EXPERTOS]]*Variables!$D$20+Tabla1[[#This Row],[PESO POR PRACTICAS]]*Variables!$D$23","v":9.1999999999999993},{"$f":"Tabla1[[#This Row],[VALOR POR ESFUERZO]]/100","v":9.1999999999999998E-2},{"$f":"'Nivel de madurez'!F3","v":2},1]
["APO","APO02","APO02 Gestionar la estrategia","Alinear los planes estratégicos de TI con los objetivos del negocio. Comunicar claramente los objetivos y las cuentas asociadas para que sean\ncomprendidos por todos, con la identificación de las opciones estratégicas de TI, estructurados e integrados con los planes de negocio.",{"$f":"'Nivel de madurez'!E4","v":0},"DIRECTO",{"$f":"VLOOKUP(Tabla1[[#This Row],[APORTE AL FOCO SEGÚN PROPOSITO]],Variables!$E$13:$F$15,2,1)","v":10},6,{"$f":"IF(Tabla1[[#This Row],[NUMERO DE PRACTICAS]]<=4,Variables!$F$18,IF(Tabla1[[#This Row],[NUMERO DE PRACTICAS]]<=7,Variables!$F$17,Variables!$F$16))","v":4},{"$f":"Tabla1[[#This Row],[PESO DEL APORTE AL FOCO]]*Variables!$D$13+Tabla1[[#This Row],[PESO SEGUN NUMERO DE PRACTICAS]]*Variables!$D$16","v":7.6},"ALTO",{"$f":"VLOOKUP(Tabla1[[#This Row],[DOMINIO]],Variables!$E$4:$F$8,2,1)","v":10},{"$f":"VLOOKUP(Tabla1[[#This Row],[JUICIO EXPERTO NI]],Variables!$E$9:$F$11,2,1)","v":9},{"$f":"Tabla1[[#This Row],[PESO POR DOMINIO]]*Variables!$D$4+Tabla1[[#This Row],[PESO POR EXPERTO]]*Variables!$D$9","v":9.5},"ALTO",{"$f":"VLOOKUP(Tabla1[[#This Row],[JUICIO EXPERTO NE]],Variables!$E$20:$F$22,2,1)","v":10},{"$f":"IF(Tabla1[[#This Row],[NUMERO DE PRACTICAS]]<=4,Variables!$F$25,IF(Tabla1[[#This Row],[NUMERO DE PRACTICAS]]<=7,Variables!$F$24,Variables!$F$23))","v":4},{"$f":"Tabla1[[#This Row],[PESO POR JUICIO EXPERTOS]]*Variables!$D$20+Tabla1[[#This Row],[PESO POR PRACTICAS]]*Variables!$D$23","v":7.6},{"$f":"Tabla1[[#This Row],[VALOR POR ESFUERZO]]/100","v":7.5999999999999998E-2},{"$f":"'Nivel de madurez'!F4","v":2},1]
["APO","APO03","APO03 Gestionar la arquitectura empresarial","Representar a los diferentes módulos que componen la empresa y sus interrelaciones, así como los principios rectores de su diseño y evolución en el tiempo, permitiendo una entrega estándar, sensible y eficiente de los objetivos operativos y estratégicos.",{"$f":"'Nivel de madurez'!E5","v":0},"INDIRECTO",{"$f":"VLOOKUP(Tabla1[[#This Row],[APORTE AL FOCO SEGÚN PROPOSITO]],Variables!$E$13:$F$15,2,1)","v":6},5,{"$f":"IF(Tabla1[[#This Row],[NUMERO DE PRACTICAS]]<=4,Variables!$F$18,IF(Tabla1[[#This Row],[NUMERO DE PRACTICAS]]<=7,Variables!$F$17,Variables!$F$16))","v":4},{"$f":"Tabla1[[#This Row],[PESO DEL APORTE AL FOCO]]*Variables!$D$13+Tabla1[[#This Row],[PESO SEGUN NUMERO DE PRACTICAS]]*Variables!$D$16","v":5.1999999999999993},"ALTO",{"$f":"VLOOKUP(Tabla1[[#This Row],[DOMINIO]],Variables!$E$4:$F$8,2,1)","v":10},{"$f":"VLOOKUP(Tabla1[[#This Row],[JUICIO EXPERTO NI]],Variables!$E$9:$F$11,2,1)","v":9},{"$f":"Tabla1[[#This Row],[PESO POR DOMINIO]]*Variables!$D$4+Tabla1[[#This Row],[PESO POR EXPERTO]]*Variables!$D$9","v":9.5},"ALTO",{"$f":"VLOOKUP(Tabla1[[#This Row],[JUICIO EXPERTO NE]],Variables!$E$20:$F$22,2,1)","v":10},{"$f":"IF(Tabla1[[#This Row],[NUMERO DE PRACTICAS]]<=4,Variables!$F$25,IF(Tabla1[[#This Row],[NUMERO DE PRACTICAS]]<=7,Variables!$F$24,Variables!$F$23))","v":4},{"$f":"Tabla1[[#This Row],[PESO POR JUICIO EXPERTOS]]*Variables!$D$20+Tabla1[[#This Row],[PESO POR PRACTICAS]]*Variables!$D$23","v":7.6},{"$f":"Tabla1[[#This Row],[VALOR POR ESFUERZO]]/100","v":7.5999999999999998E-2},{"$f":"'Nivel de madurez'!F5","v":1},1]
["APO","APO04","APO04 Gestionar la innovación","Lograr ventaja competitiva, innovación empresarial y eficacia y eficiencia operativa mejorada mediante la explotación de los desarrollos tecnológicos para la explotación de la información.",{"$f":"'Nivel de madurez'!E6","v":0},"INDIRECTO",{"$f":"VLOOKUP(Tabla1[[#This Row],[APORTE AL FOCO SEGÚN PROPOSITO]],Variables!$E$13:$F$15,2,1)","v":6},6,{"$f":"IF(Tabla1[[#This Row],[NUMERO DE PRACTICAS]]<=4,Variables!$F$18,IF(Tabla1[[#This Row],[NUMERO DE PRACTICAS]]<=7,Variables!$F$17,Variables!$F$16))","v":4},{"$f":"Tabla1[[#This Row],[PESO DEL APORTE AL FOCO]]*Variables!$D$13+Tabla1[[#This Row],[PESO SEGUN NUMERO DE PRACTICAS]]*Variables!$D$16","v":5.1999999999999993},"MEDIO",{"$f":"VLOOKUP(Tabla1[[#This Row],[DOMINIO]],Variables!$E$4:$F$8,2,1)","v":10},{"$f":"VLOOKUP(Tabla1[[#This Row],[JUICIO EXPERTO NI]],Variables!$E$9:$F$11,2,1)","v":5},{"$f":"Tabla1[[#This Row],[PESO POR DOMINIO]]*Variables!$D$4+Tabla1[[#This Row],[PESO POR EXPERTO]]*Variables!$D$9","v":7.5},"ALTO",{"$f":"VLOOKUP(Tabla1[[#This Row],[JUICIO EXPERTO NE]],Variables!$E$20:$F$22,2,1)","v":10},{"$f":"IF(Tabla1[[#This Row],[NUMERO DE PRACTICAS]]<=4,Variables!$F$25,IF(Tabla1[[#This Row],[NUMERO DE PRACTICAS]]<=7,Variables!$F$24,Variables!$F$23))","v":4},{"$f":"Tabla1[[#This Row],[PESO POR JUICIO EXPERTOS]]*Variables!$D$20+Tabla1[[#This Row],[PESO POR PRACTICAS]]*Variables!$D$23","v":7.6},{"$f":"Tabla1[[#This Row],[VALOR POR ESFUERZO]]/100","v":7.5999999999999998E-2},{"$f":"'Nivel de madurez'!F6","v":1},1]
["APO","APO05","APO05 Gestionar portafolio","Optimizar el rendimiento del portafolio global de programas en respuesta al rendimiento de programas y servicios y a las cambiantes prioridades y demandas corporativas",{"$f":"'Nivel de madurez'!E7","v":0},"INDIRECTO",{"$f":"VLOOKUP(Tabla1[[#This Row],[APORTE AL FOCO SEGÚN PROPOSITO]],Variables!$E$13:$F$15,2,1)","v":6},6,{"$f":"IF(Tabla1[[#This Row],[NUMERO DE PRACTICAS]]<=4,Variables!$F$18,IF(Tabla1[[#This Row],[NUMERO DE PRACTICAS]]<=7,Variables!$F$17,Variables!$F$16))","v":4},{"$f":"Tabla1[[#This Row],[PESO DEL APORTE AL FOCO]]*Variables!$D$13+Tabla1[[#This Row],[PESO SEGUN NUMERO DE PRACTICAS]]*Variables!$D$16","v":5.1999999999999993},"MEDIO",{"$f":"VLOOKUP(Tabla1[[#This Row],[DOMINIO]],Variables!$E$4:$F$8,2,1)","v":10},{"$f":"VLOOKUP(Tabla1[[#This Row],[JUICIO EXPERTO NI]],Variables!$E$9:$F$11,2,1)","v":5},{"$f":"Tabla1[[#This Row],[PESO POR DOMINIO]]*Variables!$D$4+Tabla1[[#This Row],[PESO POR EXPERTO]]*Variables!$D$9","v":7.5},"ALTO",{"$f":"VLOOKUP(Tabla1[[#This Row],[JUICIO EXPERTO NE]],Variables!$E$20:$F$22,2,1)","v":10},{"$f":"IF(Tabla1[[#This Row],[NUMERO DE PRACTICAS]]<=4,Variables!$F$25,IF(Tabla1[[#This Row],[NUMERO DE PRACTICAS]]<=7,Variables!$F$24,Variables!$F$23))","v":4},{"$f":"Tabla1[[#This Row],[PESO POR JUICIO EXPERTOS]]*Variables!$D$20+Tabla1[[#This Row],[PESO POR PRACTICAS]]*Variables!$D$23","v":7.6},{"$f":"Tabla1[[#This Row],[VALOR POR ESFUERZO]]/100","v":7.5999999999999998E-2},{"$f":"'Nivel de madurez'!F7","v":2},1]
["APO","APO06","APO06 Gestionar el presupuesto y los costes","Fomentar la colaboración entre TI y las partes interesadas de la empresa para catalizar el uso eficaz y eficiente de los recursos relacionados con las TI y brindar transparencia y responsabilidad sobre el coste y valor de negocio de soluciones y servicios. Permitir a la empresa tomar decisiones informadas con respecto a la utilización de soluciones y servicios de TI.",{"$f":"'Nivel de madurez'!E8","v":2},"INDIRECTO",{"$f":"VLOOKUP(Tabla1[[#This Row],[APORTE AL FOCO SEGÚN PROPOSITO]],Variables!$E$13:$F$15,2,1)","v":6},5,{"$f":"IF(Tabla1[[#This Row],[NUMERO DE PRACTICAS]]<=4,Variables!$F$18,IF(Tabla1[[#This Row],[NUMERO DE PRACTICAS]]<=7,Variables!$F$17,Variables!$F$16))","v":4},{"$f":"Tabla1[[#This Row],[PESO DEL APORTE AL FOCO]]*Variables!$D$13+Tabla1[[#This Row],[PESO SEGUN NUMERO DE PRACTICAS]]*Variables!$D$16","v":5.1999999999999993},"BAJO",{"$f":"VLOOKUP(Tabla1[[#This Row],[DOMINIO]],Variables!$E$4:$F$8,2,1)","v":10},{"$f":"VLOOKUP(Tabla1[[#This Row],[JUICIO EXPERTO NI]],Variables!$E$9:$F$11,2,1)","v":2},{"$f":"Tabla1[[#This Row],[PESO POR DOMINIO]]*Variables!$D$4+Tabla1[[#This Row],[PESO POR EXPERTO]]*Variables!$D$9","v":6},"MEDIO",{"$f":"VLOOKUP(Tabla1[[#This Row],[JUICIO EXPERTO NE]],Variables!$E$20:$F$22,2,1)","v":5},{"$f":"IF(Tabla1[[#This Row],[NUMERO DE PRACTICAS]]<=4,Variables!$F$25,IF(Tabla1[[#This Row],[NUMERO DE PRACTICAS]]<=7,Variables!$F$24,Variables!$F$23))","v":4},{"$f":"Tabla1[[#This Row],[PESO POR JUICIO EXPERTOS]]*Variables!$D$20+Tabla1[[#This Row],[PESO POR PRACTICAS]]*Variables!$D$23","v":4.5999999999999996},{"$f":"Tabla1[[#This Row],[VALOR POR ESFUERZO]]/100","v":4.5999999999999999E-2},{"$f":"'Nivel de madurez'!F8","v":5},1]
["APO","APO07","APO07 Gestionar los recursos humanos","Optimizar las capacidades de recursos humanos para cumplir los objetivos de la empresa.",{"$f":"'Nivel de madurez'!E9","v":1},"INDIRECTO",{"$f":"VLOOKUP(Tabla1[[#This Row],[APORTE AL FOCO SEGÚN PROPOSITO]],Variables!$E$13:$F$15,2,1)","v":6},6,{"$f":"IF(Tabla1[[#This Row],[NUMERO DE PRACTICAS]]<=4,Variables!$F$18,IF(Tabla1[[#This Row],[NUMERO DE PRACTICAS]]<=7,Variables!$F$17,Variables!$F$16))","v":4},{"$f":"Tabla1[[#This Row],[PESO DEL APORTE AL FOCO]]*Variables!$D$13+Tabla1[[#This Row],[PESO SEGUN NUMERO DE PRACTICAS]]*Variables!$D$16","v":5.1999999999999993},"BAJO",{"$f":"VLOOKUP(Tabla1[[#This Row],[DOMINIO]],Variables!$E$4:$F$8,2,1)","v":10},{"$f":"VLOOKUP(Tabla1[[#This Row],[JUICIO EXPERTO NI]],Variables!$E$9:$F$11,2,1)","v":2},{"$f":"Tabla1[[#This Row],[PESO POR DOMINIO]]*Variables!$D$4+Tabla1[[#This Row],[PESO POR EXPERTO]]*Variables!$D$9","v":6},"ALTO",{"$f":"VLOOKUP(Tabla1[[#This Row],[JUICIO EXPERTO NE]],Variables!$E$20:$F$22,2,1)","v":10},{"$f":"IF(Tabla1[[#This Row],[NUMERO DE PRACTICAS]]<=4,Variables!$F$25,IF(Tabla1[[#This Row],[NUMERO DE PRACTICAS]]<=7,Variables!$F$24,Variables!$F$23))","v":4},{"$f":"Tabla1[[#This Row],[PESO POR JUICIO EXPERTOS]]*Variables!$D$20+Tabla1[[#This Row],[PESO POR PRACTICAS]]*Variables!$D$23","v":7.6},{"$f":"Tabla1[[#This Row],[VALOR POR ESFUERZO]]/100","v":7.5999999999999998E-2},{"$f":"'Nivel de madurez'!F9","v":2},1]
["APO","APO08","APO08 Gestionar las relaciones","Crear mejores resultados, mayor confianza en la tecnología y conseguir un uso efectivo de los recursos.",{"$f":"'Nivel de madurez'!E10","v":1},"INDIRECTO",{"$f":"VLOOKUP(Tabla1[[#This Row],[APORTE AL FOCO SEGÚN PROPOSITO]],Variables!$E$13:$F$15,2,1)","v":6},5,{"$f":"IF(Tabla1[[#This Row],[NUMERO DE PRACTICAS]]<=4,Variables!$F$18,IF(Tabla1[[#This Row],[NUMERO DE PRACTICAS]]<=7,Variables!$F$17,Variables!$F$16))","v":4},{"$f":"Tabla1[[#This Row],[PESO DEL APORTE AL FOCO]]*Variables!$D$13+Tabla1[[#This Row],[PESO SEGUN NUMERO DE PRACTICAS]]*Variables!$D$16","v":5.1999999999999993},"BAJO",{"$f":"VLOOKUP(Tabla1[[#This Row],[DOMINIO]],Variables!$E$4:$F$8,2,1)","v":10},{"$f":"VLOOKUP(Tabla1[[#This Row],[JUICIO EXPERTO NI]],Variables!$E$9:$F$11,2,1)","v":2},{"$f":"Tabla1[[#This Row],[PESO POR DOMINIO]]*Variables!$D$4+Tabla1[[#This Row],[PESO POR EXPERTO]]*Variables!$D$9","v":6},"ALTO",{"$f":"VLOOKUP(Tabla1[[#This Row],[JUICIO EXPERTO NE]],Variables!$E$20:$F$22,2,1)","v":10},{"$f":"IF(Tabla1[[#This Row],[NUMERO DE PRACTICAS]]<=4,Variables!$F$25,IF(Tabla1[[#This Row],[NUMERO DE PRACTICAS]]<=7,Variables!$F$24,Variables!$F$23))","v":4},{"$f":"Tabla1[[#This Row],[PESO POR JUICIO EXPERTOS]]*Variables!$D$20+Tabla1[[#This Row],[PESO POR PRACTICAS]]*Variables!$D$23","v":7.6},{"$f":"Tabla1[[#This Row],[VALOR POR ESFUERZO]]/100","v":7.5999999999999998E-2},{"$f":"'Nivel de madurez'!F10","v":2},1]
["APO","APO09","APO09 Gestionar los acuerdos de servicio","Asegurar que los servicios TI y los niveles de servicio cubren las necesidades presentes y futuras de la empresa.",{"$f":"'Nivel de madurez'!E11","v":3},"INDIRECTO",{"$f":"VLOOKUP(Tabla1[[#This Row],[APORTE AL FOCO SEGÚN PROPOSITO]],Variables!$E$13:$F$15,2,1)","v":6},5,{"$f":"IF(Tabla1[[#This Row],[NUMERO DE PRACTICAS]]<=4,Variables!$F$18,IF(Tabla1[[#This Row],[NUMERO DE PRACTICAS]]<=7,Variables!$F$17,Variables!$F$16))","v":4},{"$f":"Tabla1[[#This Row],[PESO DEL APORTE AL FOCO]]*Variables!$D$13+Tabla1[[#This Row],[PESO SEGUN NUMERO DE PRACTICAS]]*Variables!$D$16","v":5.1999999999999993},"BAJO",{"$f":"VLOOKUP(Tabla1[[#This Row],[DOMINIO]],Variables!$E$4:$F$8,2,1)","v":10},{"$f":"VLOOKUP(Tabla1[[#This Row],[JUICIO EXPERTO NI]],Variables!$E$9:$F$11,2,1)","v":2},{"$f":"Tabla1[[#This Row],[PESO POR DOMINIO]]*Variables!$D$4+Tabla1[[#This Row],[PESO POR EXPERTO]]*Variables!$D$9","v":6},"MEDIO",{"$f":"VLOOKUP(Tabla1[[#This Row],[JUICIO EXPERTO NE]],Variables!$E$20:$F$22,2,1)","v":5},{"$f":"IF(Tabla1[[#This Row],[NUMERO DE PRACTICAS]]<=4,Variables!$F$25,IF(Tabla1[[#This Row],[NUMERO DE PRACTICAS]]<=7,Variables!$F$24,Variables!$F$23))","v":4},{"$f":"Tabla1[[#This Row],[PESO POR JUICIO EXPERTOS]]*Variables!$D$20+Tabla1[[#This Row],[PESO POR PRACTICAS]]*Variables!$D$23","v":4.5999999999999996},{"$f":"Tabla1[[#This Row],[VALOR POR ESFUERZO]]/100","v":4.5999999999999999E-2},{"$f":"'Nivel de madurez'!F11","v":4},1]
["APO","APO10","APO10 Gestionar los proveedores","Minimizar el riesgo de proveedores que no rindan y asegurar precios competitivos.",{"$f":"'Nivel de madurez'!E12","v":0},"NO APLICA",{"$f":"VLOOKUP(Tabla1[[#This Row],[APORTE AL FOCO SEGÚN PROPOSITO]],Variables!$E$13:$F$15,2,1)","v":1},5,{"$f":"IF(Tabla1[[#This Row],[NUMERO DE PRACTICAS]]<=4,Variables!$F$18,IF(Tabla1[[#This Row],[NUMERO DE PRACTICAS]]<=7,Variables!$F$17,Variables!$F$16))","v":4},{"$f":"Tabla1[[#This Row],[PESO DEL APORTE AL FOCO]]*Variables!$D$13+Tabla1[[#This Row],[PESO SEGUN NUMERO DE PRACTICAS]]*Variables!$D$16","v":2.2000000000000002},"BAJO",{"$f":"VLOOKUP(Tabla1[[#This Row],[DOMINIO]],Variables!$E$4:$F$8,2,1)","v":10},{"$f":"VLOOKUP(Tabla1[[#This Row],[JUICIO EXPERTO NI]],Variables!$E$9:$F$11,2,1)","v":2},{"$f":"Tabla1[[#This Row],[PESO POR DOMINIO]]*Variables!$D$4+Tabla1[[#This Row],[PESO POR EXPERTO]]*Variables!$D$9","v":6},"ALTO",{"$f":"VLOOKUP(Tabla1[[#This Row],[JUICIO EXPERTO NE]],Variables!$E$20:$F$22,2,1)","v":10},{"$f":"IF(Tabla1[[#This Row],[NUMERO DE PRACTICAS]]<=4,Variables!$F$25,IF(Tabla1[[#This Row],[NUMERO DE PRACTICAS]]<=7,Variables!$F$24,Variables!$F$23))","v":4},{"$f":"Tabla1[[#This Row],[PESO POR JUICIO EXPERTOS]]*Variables!$D$20+Tabla1[[#This Row],[PESO POR PRACTICAS]]*Variables!$D$23","v":7.6},{"$f":"Tabla1[[#This Row],[VALOR POR ESFUERZO]]/100","v":7.5999999999999998E-2},{"$f":"'Nivel de madurez'!F12","v":2},2]
["APO","APO11","APO11 Gestionar la calidad","Asegurar la entrega consistente de soluciones y servicios que cumplan con los requisitos de la organización y que satisfagan las necesidades de las partes interesadas.",{"$f":"'Nivel de madurez'!E13","v":2},"NO APLICA",{"$f":"VLOOKUP(Tabla1[[#This Row],[APORTE AL FOCO SEGÚN PROPOSITO]],Variables!$E$13:$F$15,2,1)","v":1},6,{"$f":"IF(Tabla1[[#This Row],[NUMERO DE PRACTICAS]]<=4,Variables!$F$18,IF(Tabla1[[#This Row],[NUMERO DE PRACTICAS]]<=7,Variables!$F$17,Variables!$F$16))","v":4},{"$f":"Tabla1[[#This Row],[PESO DEL APORTE AL FOCO]]*Variables!$D$13+Tabla1[[#This Row],[PESO SEGUN NUMERO DE PRACTICAS]]*Variables!$D$16","v":2.2000000000000002},"BAJO",{"$f":"VLOOKUP(Tabla1[[#This Row],[DOMINIO]],Variables!$E$4:$F$8,2,1)","v":10},{"$f":"VLOOKUP(Tabla1[[#This Row],[JUICIO EXPERTO NI]],Variables!$E$9:$F$11,2,1)","v":2},{"$f":"Tabla1[[#This Row],[PESO POR DOMINIO]]*Variables!$D$4+Tabla1[[#This Row],[PESO POR EXPERTO]]*Variables!$D$9","v":6},"MEDIO",{"$f":"VLOOKUP(Tabla1[[#This Row],[JUICIO EXPERTO NE]],Variables!$E$20:$F$22,2,1)","v":5},{"$f":"IF(Tabla1[[#This Row],[NUMERO DE PRACTICAS]]<=4,Variables!$F$25,IF(Tabla1[[#This Row],[NUMERO DE PRACTICAS]]<=7,Variables!$F$24,Variables!$F$23))","v":4},{"$f":"Tabla1[[#This Row],[PESO POR JUICIO EXPERTOS]]*Variables!$D$20+Tabla1[[#This Row],[PESO POR PRACTICAS]]*Variables!$D$23","v":4.5999999999999996},{"$f":"Tabla1[[#This Row],[VALOR POR ESFUERZO]]/100","v":4.5999999999999999E-2},{"$f":"'Nivel de madurez'!F13","v":3},2]
["APO","APO12","APO12 Gestionar el riesgo","Integrar la gestión de riesgos empresariales relacionados con TI con la gestión de riesgos empresarial general (ERM) y equilibrar los costes y beneficios de gestionar riesgos empresariales relacionados con TI.",{"$f":"'Nivel de madurez'!E14","v":4},"INDIRECTO",{"$f":"VLOOKUP(Tabla1[[#This Row],[APORTE AL FOCO SEGÚN PROPOSITO]],Variables!$E$13:$F$15,2,1)","v":6},6,{"$f":"IF(Tabla1[[#This Row],[NUMERO DE PRACTICAS]]<=4,Variables!$F$18,IF(Tabla1[[#This Row],[NUMERO DE PRACTICAS]]<=7,Variables!$F$17,Variables!$F$16))","v":4},{"$f":"Tabla1[[#This Row],[PESO DEL APORTE AL FOCO]]*Variables!$D$13+Tabla1[[#This Row],[PESO SEGUN NUMERO DE PRACTICAS]]*Variables!$D$16","v":5.1999999999999993},"BAJO",{"$f":"VLOOKUP(Tabla1[[#This Row],[DOMINIO]],Variables!$E$4:$F$8,2,1)","v":10},{"$f":"VLOOKUP(Tabla1[[#This Row],[JUICIO EXPERTO NI]],Variables!$E$9:$F$11,2,1)","v":2},{"$f":"Tabla1[[#This Row],[PESO POR DOMINIO]]*Variables!$D$4+Tabla1[[#This Row],[PESO POR EXPERTO]]*Variables!$D$9","v":6},"BAJO",{"$f":"VLOOKUP(Tabla1[[#This Row],[JUICIO EXPERTO NE]],Variables!$E$20:$F$22,2,1)","v":2},{"$f":"IF(Tabla1[[#This Row],[NUMERO DE PRACTICAS]]<=4,Variables!$F$25,IF(Tabla1[[#This Row],[NUMERO DE PRACTICAS]]<=7,Variables!$F$24,Variables!$F$23))","v":4},{"$f":"Tabla1[[#This Row],[PESO POR JUICIO EXPERTOS]]*Variables!$D$20+Tabla1[[#This Row],[PESO POR PRACTICAS]]*Variables!$D$23","v":2.8},{"$f":"Tabla1[[#This Row],[VALOR POR ESFUERZO]]/100","v":2.7999999999999997E-2},{"$f":"'Nivel de madurez'!F14","v":5},1]
["APO","APO13","APO13 Gestionar la seguridad","Mantener el impacto y ocurrencia de los incidentes de la seguridad de la información dentro de los niveles de apetito de riesgo de la empresa.",{"$f":"'Nivel de madurez'!E15","v":1},"INDIRECTO",{"$f":"VLOOKUP(Tabla1[[#This Row],[APORTE AL FOCO SEGÚN PROPOSITO]],Variables!$E$13:$F$15,2,1)","v":6},3,{"$f":"IF(Tabla1[[#This Row],[NUMERO DE PRACTICAS]]<=4,Variables!$F$18,IF(Tabla1[[#This Row],[NUMERO DE PRACTICAS]]<=7,Variables!$F$17,Variables!$F$16))","v":2},{"$f":"Tabla1[[#This Row],[PESO DEL APORTE AL FOCO]]*Variables!$D$13+Tabla1[[#This Row],[PESO SEGUN NUMERO DE PRACTICAS]]*Variables!$D$16","v":4.3999999999999995},"BAJO",{"$f":"VLOOKUP(Tabla1[[#This Row],[DOMINIO]],Variables!$E$4:$F$8,2,1)","v":10},{"$f":"VLOOKUP(Tabla1[[#This Row],[JUICIO EXPERTO NI]],Variables!$E$9:$F$11,2,1)","v":2},{"$f":"Tabla1[[#This Row],[PESO POR DOMINIO]]*Variables!$D$4+Tabla1[[#This Row],[PESO POR EXPERTO]]*Variables!$D$9","v":6},"ALTO",{"$f":"VLOOKUP(Tabla1[[#This Row],[JUICIO EXPERTO NE]],Variables!$E$20:$F$22,2,1)","v":10},{"$f":"IF(Tabla1[[#This Row],[NUMERO DE PRACTICAS]]<=4,Variables!$F$25,IF(Tabla1[[#This Row],[NUMERO DE PRACTICAS]]<=7,Variables!$F$24,Variables!$F$23))","v":2},{"$f":"Tabla1[[#This Row],[PESO POR JUICIO EXPERTOS]]*Variables!$D$20+Tabla1[[#This Row],[PESO POR PRACTICAS]]*Variables!$D$23","v":6.8},{"$f":"Tabla1[[#This Row],[VALOR POR ESFUERZO]]/100","v":6.8000000000000005E-2},{"$f":"'Nivel de madurez'!F15","v":2},2]
["BAI","BAI01","BAI01 Gestionar los programas y proyectos","Alcanzar los beneficios de negocio y reducir el riesgo de retrasos y costes inesperados y el deterioro del valor, mediante la mejora de las comunicaciones y la involucración de usuarios finales y de negocio, asegurando el valor y la calidad de los entregables del proyecto y maximizando su contribución al portafolio de servicios e inversiones.",{"$f":"'Nivel de madurez'!E16","v":1},"INDIRECTO",{"$f":"VLOOKUP(Tabla1[[#This Row],[APORTE AL FOCO SEGÚN PROPOSITO]],Variables!$E$13:$F$15,2,1)","v":6},14,{"$f":"IF(Tabla1[[#This Row],[NUMERO DE PRACTICAS]]<=4,Variables!$F$18,IF(Tabla1[[#This Row],[NUMERO DE PRACTICAS]]<=7,Variables!$F$17,Variables!$F$16))","v":8},{"$f":"Tabla1[[#This Row],[PESO DEL APORTE AL FOCO]]*Variables!$D$13+Tabla1[[#This Row],[PESO SEGUN NUMERO DE PRACTICAS]]*Variables!$D$16","v":6.8},"ALTO",{"$f":"VLOOKUP(Tabla1[[#This Row],[DOMINIO]],Variables!$E$4:$F$8,2,1)","v":7},{"$f":"VLOOKUP(Tabla1[[#This Row],[JUICIO EXPERTO NI]],Variables!$E$9:$F$11,2,1)","v":9},{"$f":"Tabla1[[#This Row],[PESO POR DOMINIO]]*Variables!$D$4+Tabla1[[#This Row],[PESO POR EXPERTO]]*Variables!$D$9","v":8},"ALTO",{"$f":"VLOOKUP(Tabla1[[#This Row],[JUICIO EXPERTO NE]],Variables!$E$20:$F$22,2,1)","v":10},{"$f":"IF(Tabla1[[#This Row],[NUMERO DE PRACTICAS]]<=4,Variables!$F$25,IF(Tabla1[[#This Row],[NUMERO DE PRACTICAS]]<=7,Variables!$F$24,Variables!$F$23))","v":8},{"$f":"Tabla1[[#This Row],[PESO POR JUICIO EXPERTOS]]*Variables!$D$20+Tabla1[[#This Row],[PESO POR PRACTICAS]]*Variables!$D$23","v":9.1999999999999993},{"$f":"Tabla1[[#This Row],[VALOR POR ESFUERZO]]/100","v":9.1999999999999998E-2},{"$f":"'Nivel de madurez'!F16","v":3},1]
["BAI","BAI02","BAI02 Gestionar la definición de requisitos","Crear soluciones viables y óptimas que cumplan con las necesidades de la organización mientras minimizan el riesgo.",{"$f":"'Nivel de madurez'!E17","v":3},"INDIRECTO",{"$f":"VLOOKUP(Tabla1[[#This Row],[APORTE AL FOCO SEGÚN PROPOSITO]],Variables!$E$13:$F$15,2,1)","v":6},4,{"$f":"IF(Tabla1[[#This Row],[NUMERO DE PRACTICAS]]<=4,Variables!$F$18,IF(Tabla1[[#This Row],[NUMERO DE PRACTICAS]]<=7,Variables!$F$17,Variables!$F$16))","v":2},{"$f":"Tabla1[[#This Row],[PESO DEL APORTE AL FOCO]]*Variables!$D$13+Tabla1[[#This Row],[PESO SEGUN NUMERO DE PRACTICAS]]*Variables!$D$16","v":4.3999999999999995},"BAJO",{"$f":"VLOOKUP(Tabla1[[#This Row],[DOMINIO]],Variables!$E$4:$F$8,2,1)","v":7},{"$f":"VLOOKUP(Tabla1[[#This Row],[JUICIO EXPERTO NI]],Variables!$E$9:$F$11,2,1)","v":2},{"$f":"Tabla1[[#This Row],[PESO POR DOMINIO]]*Variables!$D$4+Tabla1[[#This Row],[PESO POR EXPERTO]]*Variables!$D$9","v":4.5},"MEDIO",{"$f":"VLOOKUP(Tabla1[[#This Row],[JUICIO EXPERTO NE]],Variables!$E$20:$F$22,2,1)","v":5},{"$f":"IF(Tabla1[[#This Row],[NUMERO DE PRACTICAS]]<=4,Variables!$F$25,IF(Tabla1[[#This Row],[NUMERO DE PRACTICAS]]<=7,Variables!$F$24,Variables!$F$23))","v":2},{"$f":"Tabla1[[#This Row],[PESO POR JUICIO EXPERTOS]]*Variables!$D$20+Tabla1[[#This Row],[PESO POR PRACTICAS]]*Variables!$D$23","v":3.8},{"$f":"Tabla1[[#This Row],[VALOR POR ESFUERZO]]/100","v":3.7999999999999999E-2},{"$f":"'Nivel de madurez'!F17","v":4},4]
["BAI","BAI03","BAI03 Gestionar la identificación y la construcción de Soluciones","Establecer soluciones puntuales y rentables capaces de soportar la estrategia de negocio y objetivos operacionales.",{"$f":"'Nivel de madurez'!E18","v":2},"INDIRECTO",{"$f":"VLOOKUP(Tabla1[[#This Row],[APORTE AL FOCO SEGÚN PROPOSITO]],Variables!$E$13:$F$15,2,1)","v":6},11,{"$f":"IF(Tabla1[[#This Row],[NUMERO DE PRACTICAS]]<=4,Variables!$F$18,IF(Tabla1[[#This Row],[NUMERO DE PRACTICAS]]<=7,Variables!$F$17,Variables!$F$16))","v":8},{"$f":"Tabla1[[#This Row],[PESO DEL APORTE AL FOCO]]*Variables!$D$13+Tabla1[[#This Row],[PESO SEGUN NUMERO DE PRACTICAS]]*Variables!$D$16","v":6.8},"BAJO",{"$f":"VLOOKUP(Tabla1[[#This Row],[DOMINIO]],Variables!$E$4:$F$8,2,1)","v":7},{"$f":"VLOOKUP(Tabla1[[#This Row],[JUICIO EXPERTO NI]],Variables!$E$9:$F$11,2,1)","v":2},{"$f":"Tabla1[[#This Row],[PESO POR DOMINIO]]*Variables!$D$4+Tabla1[[#This Row],[PESO POR EXPERTO]]*Variables!$D$9","v":4.5},"MEDIO",{"$f":"VLOOKUP(Tabla1[[#This Row],[JUICIO EXPERTO NE]],Variables!$E$20:$F$22,2,1)","v":5},{"$f":"IF(Tabla1[[#This Row],[NUMERO DE PRACTICAS]]<=4,Variables!$F$25,IF(Tabla1[[#This Row],[NUMERO DE PRACTICAS]]<=7,Variables!$F$24,Variables!$F$23))","v":8},{"$f":"Tabla1[[#This Row],[PESO POR JUICIO EXPERTOS]]*Variables!$D$20+Tabla1[[#This Row],[PESO POR PRACTICAS]]*Variables!$D$23","v":6.2},{"$f":"Tabla1[[#This Row],[VALOR POR ESFUERZO]]/100","v":6.2E-2},{"$f":"'Nivel de madurez'!F18","v":3},3]
["BAI","BAI04","BAI04 Gestionar la disponibilidad y la Capacidad","Mantener la disponibilidad del servicio, la gestión eficiente de recursos y la optimización del rendimiento de los sistemas mediante la predicción del rendimiento futuro y de los requerimientos de capacidad.",{"$f":"'Nivel de madurez'!E19","v":1},"NO APLICA",{"$f":"VLOOKUP(Tabla1[[#This Row],[APORTE AL FOCO SEGÚN PROPOSITO]],Variables!$E$13:$F$15,2,1)","v":1},5,{"$f":"IF(Tabla1[[#This Row],[NUMERO DE PRACTICAS]]<=4,Variables!$F$18,IF(Tabla1[[#This Row],[NUMERO DE PRACTICAS]]<=7,Variables!$F$17,Variables!$F$16))","v":4},{"$f":"Tabla1[[#This Row],[PESO DEL APORTE AL FOCO]]*Variables!$D$13+Tabla1[[#This Row],[PESO SEGUN NUMERO DE PRACTICAS]]*Variables!$D$16","v":2.2000000000000002},"BAJO",{"$f":"VLOOKUP(Tabla1[[#This Row],[DOMINIO]],Variables!$E$4:$F$8,2,1)","v":7},{"$f":"VLOOKUP(Tabla1[[#This Row],[JUICIO EXPERTO NI]],Variables!$E$9:$F$11,2,1)","v":2},{"$f":"Tabla1[[#This Row],[PESO POR DOMINIO]]*Variables!$D$4+Tabla1[[#This Row],[PESO POR EXPERTO]]*Variables!$D$9","v":4.5},"ALTO",{"$f":"VLOOKUP(Tabla1[[#This Row],[JUICIO EXPERTO NE]],Variables!$E$20:$F$22,2,1)","v":10},{"$f":"IF(Tabla1[[#This Row],[NUMERO DE PRACTICAS]]<=4,Variables!$F$25,IF(Tabla1[[#This Row],[NUMERO DE PRACTICAS]]<=7,Variables!$F$24,Variables!$F$23))","v":4},{"$f":"Tabla1[[#This Row],[PESO POR JUICIO EXPERTOS]]*Variables!$D$20+Tabla1[[#This Row],[PESO POR PRACTICAS]]*Variables!$D$23","v":7.6},{"$f":"Tabla1[[#This Row],[VALOR POR ESFUERZO]]/100","v":7.5999999999999998E-2},{"$f":"'Nivel de madurez'!F19","v":2},4]
["BAI","BAI05","BAI05 Gestionar la introducción de cambios organizativos","Preparar y comprometer a las partes interesadas para el cambio en el negocio y reducir el riesgo de fracaso.",{"$f":"'Nivel de madurez'!E20","v":5},"NO APLICA",{"$f":"VLOOKUP(Tabla1[[#This Row],[APORTE AL FOCO SEGÚN PROPOSITO]],Variables!$E$13:$F$15,2,1)","v":1},7,{"$f":"IF(Tabla1[[#This Row],[NUMERO DE PRACTICAS]]<=4,Variables!$F$18,IF(Tabla1[[#This Row],[NUMERO DE PRACTICAS]]<=7,Variables!$F$17,Variables!$F$16))","v":4},{"$f":"Tabla1[[#This Row],[PESO DEL APORTE AL FOCO]]*Variables!$D$13+Tabla1[[#This Row],[PESO SEGUN NUMERO DE PRACTICAS]]*Variables!$D$16","v":2.2000000000000002},"ALTO",{"$f":"VLOOKUP(Tabla1[[#This Row],[DOMINIO]],Variables!$E$4:$F$8,2,1)","v":7},{"$f":"VLOOKUP(Tabla1[[#This Row],[JUICIO EXPERTO NI]],Variables!$E$9:$F$11,2,1)","v":9},{"$f":"Tabla1[[#This Row],[PESO POR DOMINIO]]*Variables!$D$4+Tabla1[[#This Row],[PESO POR EXPERTO]]*Variables!$D$9","v":8},"BAJO",{"$f":"VLOOKUP(Tabla1[[#This Row],[JUICIO EXPERTO NE]],Variables!$E$20:$F$22,2,1)","v":2},{"$f":"IF(Tabla1[[#This Row],[NUMERO DE PRACTICAS]]<=4,Variables!$F$25,IF(Tabla1[[#This Row],[NUMERO DE PRACTICAS]]<=7,Variables!$F$24,Variables!$F$23))","v":4},{"$f":"Tabla1[[#This Row],[PESO POR JUICIO EXPERTOS]]*Variables!$D$20+Tabla1[[#This Row],[PESO POR PRACTICAS]]*Variables!$D$23","v":2.8},{"$f":"Tabla1[[#This Row],[VALOR POR ESFUERZO]]/100","v":2.7999999999999997E-2},{"$f":"'Nivel de madurez'!F20","v":5},2]
["BAI","BAI06","BAI06 Gestionar los cambios","Posibilitar una entrega de los cambios rápida y fiable para el negocio, a la vez que se mitiga cualquier riesgo que impacte negativamente en la\nestabilidad e integridad del entorno en que se aplica el cambio.",{"$f":"'Nivel de madurez'!E21","v":4},"NO APLICA",{"$f":"VLOOKUP(Tabla1[[#This Row],[APORTE AL FOCO SEGÚN PROPOSITO]],Variables!$E$13:$F$15,2,1)","v":1},4,{"$f":"IF(Tabla1[[#This Row],[NUMERO DE PRACTICAS]]<=4,Variables!$F$18,IF(Tabla1[[#This Row],[NUMERO DE PRACTICAS]]<=7,Variables!$F$17,Variables!$F$16))","v":2},{"$f":"Tabla1[[#This Row],[PESO DEL APORTE AL FOCO]]*Variables!$D$13+Tabla1[[#This Row],[PESO SEGUN NUMERO DE PRACTICAS]]*Variables!$D$16","v":1.4},"BAJO",{"$f":"VLOOKUP(Tabla1[[#This Row],[DOMINIO]],Variables!$E$4:$F$8,2,1)","v":7},{"$f":"VLOOKUP(Tabla1[[#This Row],[JUICIO EXPERTO NI]],Variables!$E$9:$F$11,2,1)","v":2},{"$f":"Tabla1[[#This Row],[PESO POR DOMINIO]]*Variables!$D$4+Tabla1[[#This Row],[PESO POR EXPERTO]]*Variables!$D$9","v":4.5},"BAJO",{"$f":"VLOOKUP(Tabla1[[#This Row],[JUICIO EXPERTO NE]],Variables!$E$20:$F$22,2,1)","v":2},{"$f":"IF(Tabla1[[#This Row],[NUMERO DE PRACTICAS]]<=4,Variables!$F$25,IF(Tabla1[[#This Row],[NUMERO DE PRACTICAS]]<=7,Variables!$F$24,Variables!$F$23))","v":2},{"$f":"Tabla1[[#This Row],[PESO POR JUICIO EXPERTOS]]*Variables!$D$20+Tabla1[[#This Row],[PESO POR PRACTICAS]]*Variables!$D$23","v":2},{"$f":"Tabla1[[#This Row],[VALOR POR ESFUERZO]]/100","v":0.02},{"$f":"'Nivel de madurez'!F21","v":5},4]
["BAI","BAI07","BAI07 Gestionar la aceptación del cambio y de la transición","Implementar soluciones de forma segura y en línea con las expectativas y resultados acordados.",{"$f":"'Nivel de madurez'!E22","v":1},"NO APLICA",{"$f":"VLOOKUP(Tabla1[[#This Row],[APORTE AL FOCO SEGÚN PROPOSITO]],Variables!$E$13:$F$15,2,1)","v":1},8,{"$f":"IF(Tabla1[[#This Row],[NUMERO DE PRACTICAS]]<=4,Variables!$F$18,IF(Tabla1[[#This Row],[NUMERO DE PRACTICAS]]<=7,Variables!$F$17,Variables!$F$16))","v":8},{"$f":"Tabla1[[#This Row],[PESO DEL APORTE AL FOCO]]*Variables!$D$13+Tabla1[[#This Row],[PESO SEGUN NUMERO DE PRACTICAS]]*Variables!$D$16","v":3.8000000000000003},"BAJO",{"$f":"VLOOKUP(Tabla1[[#This Row],[DOMINIO]],Variables!$E$4:$F$8,2,1)","v":7},{"$f":"VLOOKUP(Tabla1[[#This Row],[JUICIO EXPERTO NI]],Variables!$E$9:$F$11,2,1)","v":2},{"$f":"Tabla1[[#This Row],[PESO POR DOMINIO]]*Variables!$D$4+Tabla1[[#This Row],[PESO POR EXPERTO]]*Variables!$D$9","v":4.5},"ALTO",{"$f":"VLOOKUP(Tabla1[[#This Row],[JUICIO EXPERTO NE]],Variables!$E$20:$F$22,2,1)","v":10},{"$f":"IF(Tabla1[[#This Row],[NUMERO DE PRACTICAS]]<=4,Variables!$F$25,IF(Tabla1[[#This Row],[NUMERO DE PRACTICAS]]<=7,Variables!$F$24,Variables!$F$23))","v":8},{"$f":"Tabla1[[#This Row],[PESO POR JUICIO EXPERTOS]]*Variables!$D$20+Tabla1[[#This Row],[PESO POR PRACTICAS]]*Variables!$D$23","v":9.1999999999999993},{"$f":"Tabla1[[#This Row],[VALOR POR ESFUERZO]]/100","v":9.1999999999999998E-2},{"$f":"'Nivel de madurez'!F22","v":2},4]
["BAI","BAI08","BAI08 Gestionar el conocimiento","Proporcionar el conocimiento necesario para dar soporte a todo el personal en sus actividades laborales, para la toma de decisiones bien fundadas y para aumentar la productividad.",{"$f":"'Nivel de madurez'!E23","v":0},"INDIRECTO",{"$f":"VLOOKUP(Tabla1[[#This Row],[APORTE AL FOCO SEGÚN PROPOSITO]],Variables!$E$13:$F$15,2,1)","v":6},5,{"$f":"IF(Tabla1[[#This Row],[NUMERO DE PRACTICAS]]<=4,Variables!$F$18,IF(Tabla1[[#This Row],[NUMERO DE PRACTICAS]]<=7,Variables!$F$17,Variables!$F$16))","v":4},{"$f":"Tabla1[[#This Row],[PESO DEL APORTE AL FOCO]]*Variables!$D$13+Tabla1[[#This Row],[PESO SEGUN NUMERO DE PRACTICAS]]*Variables!$D$16","v":5.1999999999999993},"MEDIO",{"$f":"VLOOKUP(Tabla1[[#This Row],[DOMINIO]],Variables!$E$4:$F$8,2,1)","v":7},{"$f":"VLOOKUP(Tabla1[[#This Row],[JUICIO EXPERTO NI]],Variables!$E$9:$F$11,2,1)","v":5},{"$f":"Tabla1[[#This Row],[PESO POR DOMINIO]]*Variables!$D$4+Tabla1[[#This Row],[PESO POR EXPERTO]]*Variables!$D$9","v":6},"ALTO",{"$f":"VLOOKUP(Tabla1[[#This Row],[JUICIO EXPERTO NE]],Variables!$E$20:$F$22,2,1)","v":10},{"$f":"IF(Tabla1[[#This Row],[NUMERO DE PRACTICAS]]<=4,Variables!$F$25,IF(Tabla1[[#This Row],[NUMERO DE PRACTICAS]]<=7,Variables!$F$24,Variables!$F$23))","v":4},{"$f":"Tabla1[[#This Row],[PESO POR JUICIO EXPERTOS]]*Variables!$D$20+Tabla1[[#This Row],[PESO POR PRACTICAS]]*Variables!$D$23","v":7.6},{"$f":"Tabla1[[#This Row],[VALOR POR ESFUERZO]]/100","v":7.5999999999999998E-2},{"$f":"'Nivel de madurez'!F23","v":1},1]
["BAI","BAI09","BAI09 Gestionar los activos","Contabilización de todos los activos de TI y optimización del valor proporcionado por estos activos.",{"$f":"'Nivel de madurez'!E24","v":1},"INDIRECTO",{"$f":"VLOOKUP(Tabla1[[#This Row],[APORTE AL FOCO SEGÚN PROPOSITO]],Variables!$E$13:$F$15,2,1)","v":6},5,{"$f":"IF(Tabla1[[#This Row],[NUMERO DE PRACTICAS]]<=4,Variables!$F$18,IF(Tabla1[[#This Row],[NUMERO DE PRACTICAS]]<=7,Variables!$F$17,Variables!$F$16))","v":4},{"$f":"Tabla1[[#This Row],[PESO DEL APORTE AL FOCO]]*Variables!$D$13+Tabla1[[#This Row],[PESO SEGUN NUMERO DE PRACTICAS]]*Variables!$D$16","v":5.1999999999999993},"BAJO",{"$f":"VLOOKUP(Tabla1[[#This Row],[DOMINIO]],Variables!$E$4:$F$8,2,1)","v":7},{"$f":"VLOOKUP(Tabla1[[#This Row],[JUICIO EXPERTO NI]],Variables!$E$9:$F$11,2,1)","v":2},{"$f":"Tabla1[[#This Row],[PESO POR DOMINIO]]*Variables!$D$4+Tabla1[[#This Row],[PESO POR EXPERTO]]*Variables!$D$9","v":4.5},"ALTO",{"$f":"VLOOKUP(Tabla1[[#This Row],[JUICIO EXPERTO NE]],Variables!$E$20:$F$22,2,1)","v":10},{"$f":"IF(Tabla1[[#This Row],[NUMERO DE PRACTICAS]]<=4,Variables!$F$25,IF(Tabla1[[#This Row],[NUMERO DE PRACTICAS]]<=7,Variables!$F$24,Variables!$F$23))","v":4},{"$f":"Tabla1[[#This Row],[PESO POR JUICIO EXPERTOS]]*Variables!$D$20+Tabla1[[#This Row],[PESO POR PRACTICAS]]*Variables!$D$23","v":7.6},{"$f":"Tabla1[[#This Row],[VALOR POR ESFUERZO]]/100","v":7.5999999999999998E-2},{"$f":"'Nivel de madurez'!F24","v":2},3]
["BAI","BAI10","BAI10 Gestionar la Configuración","Proporcionar suficiente información sobre los activos del servicio para que el servicio pueda gestionarse con eficacia, evaluar el impacto de los cambios y hacer frente a los incidentes del servicio.",{"$f":"'Nivel de madurez'!E25","v":1},"NO APLICA",{"$f":"VLOOKUP(Tabla1[[#This Row],[APORTE AL FOCO SEGÚN PROPOSITO]],Variables!$E$13:$F$15,2,1)","v":1},5,{"$f":"IF(Tabla1[[#This Row],[NUMERO DE PRACTICAS]]<=4,Variables!$F$18,IF(Tabla1[[#This Row],[NUMERO DE PRACTICAS]]<=7,Variables!$F$17,Variables!$F$16))","v":4},{"$f":"Tabla1[[#This Row],[PESO DEL APORTE AL FOCO]]*Variables!$D$13+Tabla1[[#This Row],[PESO SEGUN NUMERO DE PRACTICAS]]*Variables!$D$16","v":2.2000000000000002},"BAJO",{"$f":"VLOOKUP(Tabla1[[#This Row],[DOMINIO]],Variables!$E$4:$F$8,2,1)","v":7},{"$f":"VLOOKUP(Tabla1[[#This Row],[JUICIO EXPERTO NI]],Variables!$E$9:$F$11,2,1)","v":2},{"$f":"Tabla1[[#This Row],[PESO POR DOMINIO]]*Variables!$D$4+Tabla1[[#This Row],[PESO POR EXPERTO]]*Variables!$D$9","v":4.5},"ALTO",{"$f":"VLOOKUP(Tabla1[[#This Row],[JUICIO EXPERTO NE]],Variables!$E$20:$F$22,2,1)","v":10},{"$f":"IF(Tabla1[[#This Row],[NUMERO DE PRACTICAS]]<=4,Variables!$F$25,IF(Tabla1[[#This Row],[NUMERO DE PRACTICAS]]<=7,Variables!$F$24,Variables!$F$23))","v":4},{"$f":"Tabla1[[#This Row],[PESO POR JUICIO EXPERTOS]]*Variables!$D$20+Tabla1[[#This Row],[PESO POR PRACTICAS]]*Variables!$D$23","v":7.6},{"$f":"Tabla1[[#This Row],[VALOR POR ESFUERZO]]/100","v":7.5999999999999998E-2},{"$f":"'Nivel de madurez'!F25","v":3},4]
["DSS","DSS01","DSS01 Gestionar las operaciones","Entregar los resultados del servicio operativo de TI, según lo planificado.",{"$f":"'Nivel de madurez'!E26","v":3},"NO APLICA",{"$f":"VLOOKUP(Tabla1[[#This Row],[APORTE AL FOCO SEGÚN PROPOSITO]],Variables!$E$13:$F$15,2,1)","v":1},5,{"$f":"IF(Tabla1[[#This Row],[NUMERO DE PRACTICAS]]<=4,Variables!$F$18,IF(Tabla1[[#This Row],[NUMERO DE PRACTICAS]]<=7,Variables!$F$17,Variables!$F$16))","v":4},{"$f":"Tabla1[[#This Row],[PESO DEL APORTE AL FOCO]]*Variables!$D$13+Tabla1[[#This Row],[PESO SEGUN NUMERO DE PRACTICAS]]*Variables!$D$16","v":2.2000000000000002},"BAJO",{"$f":"VLOOKUP(Tabla1[[#This Row],[DOMINIO]],Variables!$E$4:$F$8,2,1)","v":3},{"$f":"VLOOKUP(Tabla1[[#This Row],[JUICIO EXPERTO NI]],Variables!$E$9:$F$11,2,1)","v":2},{"$f":"Tabla1[[#This Row],[PESO POR DOMINIO]]*Variables!$D$4+Tabla1[[#This Row],[PESO POR EXPERTO]]*Variables!$D$9","v":2.5},"MEDIO",{"$f":"VLOOKUP(Tabla1[[#This Row],[JUICIO EXPERTO NE]],Variables!$E$20:$F$22,2,1)","v":5},{"$f":"IF(Tabla1[[#This Row],[NUMERO DE PRACTICAS]]<=4,Variables!$F$25,IF(Tabla1[[#This Row],[NUMERO DE PRACTICAS]]<=7,Variables!$F$24,Variables!$F$23))","v":4},{"$f":"Tabla1[[#This Row],[PESO POR JUICIO EXPERTOS]]*Variables!$D$20+Tabla1[[#This Row],[PESO POR PRACTICAS]]*Variables!$D$23","v":4.5999999999999996},{"$f":"Tabla1[[#This Row],[VALOR POR ESFUERZO]]/100","v":4.5999999999999999E-2},{"$f":"'Nivel de madurez'!F26","v":4},4]
["DSS","DSS02","DSS02 Gestionar las peticiones y los incidentes del servicio","Lograr una mayor productividad y minimizar las interrupciones mediante la rápida resolución de consultas de usuario e incidentes.",{"$f":"'Nivel de madurez'!E27","v":2},"NO APLICA",{"$f":"VLOOKUP(Tabla1[[#This Row],[APORTE AL FOCO SEGÚN PROPOSITO]],Variables!$E$13:$F$15,2,1)","v":1},7,{"$f":"IF(Tabla1[[#This Row],[NUMERO DE PRACTICAS]]<=4,Variables!$F$18,IF(Tabla1[[#This Row],[NUMERO DE PRACTICAS]]<=7,Variables!$F$17,Variables!$F$16))","v":4},{"$f":"Tabla1[[#This Row],[PESO DEL APORTE AL FOCO]]*Variables!$D$13+Tabla1[[#This Row],[PESO SEGUN NUMERO DE PRACTICAS]]*Variables!$D$16","v":2.2000000000000002},"BAJO",{"$f":"VLOOKUP(Tabla1[[#This Row],[DOMINIO]],Variables!$E$4:$F$8,2,1)","v":3},{"$f":"VLOOKUP(Tabla1[[#This Row],[JUICIO EXPERTO NI]],Variables!$E$9:$F$11,2,1)","v":2},{"$f":"Tabla1[[#This Row],[PESO POR DOMINIO]]*Variables!$D$4+Tabla1[[#This Row],[PESO POR EXPERTO]]*Variables!$D$9","v":2.5},"MEDIO",{"$f":"VLOOKUP(Tabla1[[#This Row],[JUICIO EXPERTO NE]],Variables!$E$20:$F$22,2,1)","v":5},{"$f":"IF(Tabla1[[#This Row],[NUMERO DE PRACTICAS]]<=4,Variables!$F$25,IF(Tabla1[[#This Row],[NUMERO DE PRACTICAS]]<=7,Variables!$F$24,Variables!$F$23))","v":4},{"$f":"Tabla1[[#This Row],[PESO POR JUICIO EXPERTOS]]*Variables!$D$20+Tabla1[[#This Row],[PESO POR PRACTICAS]]*Variables!$D$23","v":4.5999999999999996},{"$f":"Tabla1[[#This Row],[VALOR POR ESFUERZO]]/100","v":4.5999999999999999E-2},{"$f":"'Nivel de madurez'!F27","v":3},4]
["DSS","DSS03","DSS03 Gestionar los problemas","Incrementar la disponibilidad, mejorar los niveles de servicio, reducir costes, y mejorar la comodidad y satisfacción del cliente reduciendo el número de\nproblemas operativos.",{"$f":"'Nivel de madurez'!E28","v":0},"NO APLICA",{"$f":"VLOOKUP(Tabla1[[#This Row],[APORTE AL FOCO SEGÚN PROPOSITO]],Variables!$E$13:$F$15,2,1)","v":1},5,{"$f":"IF(Tabla1[[#This Row],[NUMERO DE PRACTICAS]]<=4,Variables!$F$18,IF(Tabla1[[#This Row],[NUMERO DE PRACTICAS]]<=7,Variables!$F$17,Variables!$F$16))","v":4},{"$f":"Tabla1[[#This Row],[PESO DEL APORTE AL FOCO]]*Variables!$D$13+Tabla1[[#This Row],[PESO SEGUN NUMERO DE PRACTICAS]]*Variables!$D$16","v":2.2000000000000002},"BAJO",{"$f":"VLOOKUP(Tabla1[[#This Row],[DOMINIO]],Variables!$E$4:$F$8,2,1)","v":3},{"$f":"VLOOKUP(Tabla1[[#This Row],[JUICIO EXPERTO NI]],Variables!$E$9:$F$11,2,1)","v":2},{"$f":"Tabla1[[#This Row],[PESO POR DOMINIO]]*Variables!$D$4+Tabla1[[#This Row],[PESO POR EXPERTO]]*Variables!$D$9","v":2.5},"ALTO",{"$f":"VLOOKUP(Tabla1[[#This Row],[JUICIO EXPERTO NE]],Variables!$E$20:$F$22,2,1)","v":10},{"$f":"IF(Tabla1[[#This Row],[NUMERO DE PRACTICAS]]<=4,Variables!$F$25,IF(Tabla1[[#This Row],[NUMERO DE PRACTICAS]]<=7,Variables!$F$24,Variables!$F$23))","v":4},{"$f":"Tabla1[[#This Row],[PESO POR JUICIO EXPERTOS]]*Variables!$D$20+Tabla1[[#This Row],[PESO POR PRACTICAS]]*Variables!$D$23","v":7.6},{"$f":"Tabla1[[#This Row],[VALOR POR ESFUERZO]]/100","v":7.5999999999999998E-2},{"$f":"'Nivel de madurez'!F28","v":1},4]
["DSS","DSS04","DSS04 Gestionar la continuidad","Continuar las operaciones críticas para el negocio y mantener la disponibilidad de la información a un nivel aceptable para la empresa ante el evento de\nuna interrupción significativa.",{"$f":"'Nivel de madurez'!E29","v":1},"NO APLICA",{"$f":"VLOOKUP(Tabla1[[#This Row],[APORTE AL FOCO SEGÚN PROPOSITO]],Variables!$E$13:$F$15,2,1)","v":1},8,{"$f":"IF(Tabla1[[#This Row],[NUMERO DE PRACTICAS]]<=4,Variables!$F$18,IF(Tabla1[[#This Row],[NUMERO DE PRACTICAS]]<=7,Variables!$F$17,Variables!$F$16))","v":8},{"$f":"Tabla1[[#This Row],[PESO DEL APORTE AL FOCO]]*Variables!$D$13+Tabla1[[#This Row],[PESO SEGUN NUMERO DE PRACTICAS]]*Variables!$D$16","v":3.8000000000000003},"BAJO",{"$f":"VLOOKUP(Tabla1[[#This Row],[DOMINIO]],Variables!$E$4:$F$8,2,1)","v":3},{"$f":"VLOOKUP(Tabla1[[#This Row],[JUICIO EXPERTO NI]],Variables!$E$9:$F$11,2,1)","v":2},{"$f":"Tabla1[[#This Row],[PESO POR DOMINIO]]*Variables!$D$4+Tabla1[[#This Row],[PESO POR EXPERTO]]*Variables!$D$9","v":2.5},"ALTO",{"$f":"VLOOKUP(Tabla1[[#This Row],[JUICIO EXPERTO NE]],Variables!$E$20:$F$22,2,1)","v":10},{"$f":"IF(Tabla1[[#This Row],[NUMERO DE PRACTICAS]]<=4,Variables!$F$25,IF(Tabla1[[#This Row],[NUMERO DE PRACTICAS]]<=7,Variables!$F$24,Variables!$F$23))","v":8},{"$f":"Tabla1[[#This Row],[PESO POR JUICIO EXPERTOS]]*Variables!$D$20+Tabla1[[#This Row],[PESO POR PRACTICAS]]*Variables!$D$23","v":9.1999999999999993},{"$f":"Tabla1[[#This Row],[VALOR POR ESFUERZO]]/100","v":9.1999999999999998E-2},{"$f":"'Nivel de madurez'!F29","v":2},4]
["DSS","DSS05","DSS05 Gestionar los servicios de Seguridad","Minimizar el impacto en el negocio de las vulnerabilidades e incidentes operativos de seguridad en la información.",{"$f":"'Nivel de madurez'!E30","v":1},"NO APLICA",{"$f":"VLOOKUP(Tabla1[[#This Row],[APORTE AL FOCO SEGÚN PROPOSITO]],Variables!$E$13:$F$15,2,1)","v":1},7,{"$f":"IF(Tabla1[[#This Row],[NUMERO DE PRACTICAS]]<=4,Variables!$F$18,IF(Tabla1[[#This Row],[NUMERO DE PRACTICAS]]<=7,Variables!$F$17,Variables!$F$16))","v":4},{"$f":"Tabla1[[#This Row],[PESO DEL APORTE AL FOCO]]*Variables!$D$13+Tabla1[[#This Row],[PESO SEGUN NUMERO DE PRACTICAS]]*Variables!$D$16","v":2.2000000000000002},"BAJO",{"$f":"VLOOKUP(Tabla1[[#This Row],[DOMINIO]],Variables!$E$4:$F$8,2,1)","v":3},{"$f":"VLOOKUP(Tabla1[[#This Row],[JUICIO EXPERTO NI]],Variables!$E$9:$F$11,2,1)","v":2},{"$f":"Tabla1[[#This Row],[PESO POR DOMINIO]]*Variables!$D$4+Tabla1[[#This Row],[PESO POR EXPERTO]]*Variables!$D$9","v":2.5},"ALTO",{"$f":"VLOOKUP(Tabla1[[#This Row],[JUICIO EXPERTO NE]],Variables!$E$20:$F$22,2,1)","v":10},{"$f":"IF(Tabla1[[#This Row],[NUMERO DE PRACTICAS]]<=4,Variables!$F$25,IF(Tabla1[[#This Row],[NUMERO DE PRACTICAS]]<=7,Variables!$F$24,Variables!$F$23))","v":4},{"$f":"Tabla1[[#This Row],[PESO POR JUICIO EXPERTOS]]*Variables!$D$20+Tabla1[[#This Row],[PESO POR PRACTICAS]]*Variables!$D$23","v":7.6},{"$f":"Tabla1[[#This Row],[VALOR POR ESFUERZO]]/100","v":7.5999999999999998E-2},{"$f":"'Nivel de madurez'!F30","v":3},4]
["DSS","DSS06","DSS06 Gestionar los controles de los procesos del negocio","Mantener la integridad de la información y la seguridad de los activos de información manejados en los procesos de negocio dentro de la empresa o\nexternalizados.",{"$f":"'Nivel de madurez'!E31","v":0},"NO APLICA",{"$f":"VLOOKUP(Tabla1[[#This Row],[APORTE AL FOCO SEGÚN PROPOSITO]],Variables!$E$13:$F$15,2,1)","v":1},6,{"$f":"IF(Tabla1[[#This Row],[NUMERO DE PRACTICAS]]<=4,Variables!$F$18,IF(Tabla1[[#This Row],[NUMERO DE PRACTICAS]]<=7,Variables!$F$17,Variables!$F$16))","v":4},{"$f":"Tabla1[[#This Row],[PESO DEL APORTE AL FOCO]]*Variables!$D$13+Tabla1[[#This Row],[PESO SEGUN NUMERO DE PRACTICAS]]*Variables!$D$16","v":2.2000000000000002},"BAJO",{"$f":"VLOOKUP(Tabla1[[#This Row],[DOMINIO]],Variables!$E$4:$F$8,2,1)","v":3},{"$f":"VLOOKUP(Tabla1[[#This Row],[JUICIO EXPERTO NI]],Variables!$E$9:$F$11,2,1)","v":2},{"$f":"Tabla1[[#This Row],[PESO POR DOMINIO]]*Variables!$D$4+Tabla1[[#This Row],[PESO POR EXPERTO]]*Variables!$D$9","v":2.5},"ALTO",{"$f":"VLOOKUP(Tabla1[[#This Row],[JUICIO EXPERTO NE]],Variables!$E$20:$F$22,2,1)","v":10},{"$f":"IF(Tabla1[[#This Row],[NUMERO DE PRACTICAS]]<=4,Variables!$F$25,IF(Tabla1[[#This Row],[NUMERO DE PRACTICAS]]<=7,Variables!$F$24,Variables!$F$23))","v":4},{"$f":"Tabla1[[#This Row],[PESO POR JUICIO EXPERTOS]]*Variables!$D$20+Tabla1[[#This Row],[PESO POR PRACTICAS]]*Variables!$D$23","v":7.6},{"$f":"Tabla1[[#This Row],[VALOR POR ESFUERZO]]/100","v":7.5999999999999998E-2},{"$f":"'Nivel de madurez'!F31","v":1},4]
["EDM","EDM01","EDM01 Asegurar el establecimiento y mantenimiento del marco de gobierno","Proporcionar un enfoque consistente, integrado y alineado con el alcance del gobierno de la empresa. Para garantizar que las decisiones relativas\na TI se han adoptado en línea con las estrategias y objetivos de la empresa, garantizando la supervisión de los procesos de manera efectiva y transparentemente, el cumplimiento con los requerimientos regulatorios y legales y que se han alcanzado los requerimientos de gobierno de los\nmiembros del Consejo de Administración.",{"$f":"'Nivel de madurez'!E32","v":0},"DIRECTO",{"$f":"VLOOKUP(Tabla1[[#This Row],[APORTE AL FOCO SEGÚN PROPOSITO]],Variables!$E$13:$F$15,2,1)","v":10},3,{"$f":"IF(Tabla1[[#This Row],[NUMERO DE PRACTICAS]]<=4,Variables!$F$18,IF(Tabla1[[#This Row],[NUMERO DE PRACTICAS]]<=7,Variables!$F$17,Variables!$F$16))","v":2},{"$f":"Tabla1[[#This Row],[PESO DEL APORTE AL FOCO]]*Variables!$D$13+Tabla1[[#This Row],[PESO SEGUN NUMERO DE PRACTICAS]]*Variables!$D$16","v":6.8},"ALTO",{"$f":"VLOOKUP(Tabla1[[#This Row],[DOMINIO]],Variables!$E$4:$F$8,2,1)","v":5},{"$f":"VLOOKUP(Tabla1[[#This Row],[JUICIO EXPERTO NI]],Variables!$E$9:$F$11,2,1)","v":9},{"$f":"Tabla1[[#This Row],[PESO POR DOMINIO]]*Variables!$D$4+Tabla1[[#This Row],[PESO POR EXPERTO]]*Variables!$D$9","v":7},"ALTO",{"$f":"VLOOKUP(Tabla1[[#This Row],[JUICIO EXPERTO NE]],Variables!$E$20:$F$22,2,1)","v":10},{"$f":"IF(Tabla1[[#This Row],[NUMERO DE PRACTICAS]]<=4,Variables!$F$25,IF(Tabla1[[#This Row],[NUMERO DE PRACTICAS]]<=7,Variables!$F$24,Variables!$F$23))","v":2},{"$f":"Tabla1[[#This Row],[PESO POR JUICIO EXPERTOS]]*Variables!$D$20+Tabla1[[#This Row],[PESO POR PRACTICAS]]*Variables!$D$23","v":6.8},{"$f":"Tabla1[[#This Row],[VALOR POR ESFUERZO]]/100","v":6.8000000000000005E-2},{"$f":"'Nivel de madurez'!F32","v":2},1]
["EDM","EDM02","EDM02 Asegurar la entrega de beneficios","Asegurar un valor óptimo de las iniciativas de TI, servicios y activos disponibles; una entrega coste eficiente de los servicios y soluciones y una visión\nconfiable y precisa de los costes y de los beneficios probables de manera que las necesidades del negocio sean soportadas efectiva y eficientemente.",{"$f":"'Nivel de madurez'!E33","v":1},"INDIRECTO",{"$f":"VLOOKUP(Tabla1[[#This Row],[APORTE AL FOCO SEGÚN PROPOSITO]],Variables!$E$13:$F$15,2,1)","v":6},3,{"$f":"IF(Tabla1[[#This Row],[NUMERO DE PRACTICAS]]<=4,Variables!$F$18,IF(Tabla1[[#This Row],[NUMERO DE PRACTICAS]]<=7,Variables!$F$17,Variables!$F$16))","v":2},{"$f":"Tabla1[[#This Row],[PESO DEL APORTE AL FOCO]]*Variables!$D$13+Tabla1[[#This Row],[PESO SEGUN NUMERO DE PRACTICAS]]*Variables!$D$16","v":4.3999999999999995},"BAJO",{"$f":"VLOOKUP(Tabla1[[#This Row],[DOMINIO]],Variables!$E$4:$F$8,2,1)","v":5},{"$f":"VLOOKUP(Tabla1[[#This Row],[JUICIO EXPERTO NI]],Variables!$E$9:$F$11,2,1)","v":2},{"$f":"Tabla1[[#This Row],[PESO POR DOMINIO]]*Variables!$D$4+Tabla1[[#This Row],[PESO POR EXPERTO]]*Variables!$D$9","v":3.5},"ALTO",{"$f":"VLOOKUP(Tabla1[[#This Row],[JUICIO EXPERTO NE]],Variables!$E$20:$F$22,2,1)","v":10},{"$f":"IF(Tabla1[[#This Row],[NUMERO DE PRACTICAS]]<=4,Variables!$F$25,IF(Tabla1[[#This Row],[NUMERO DE PRACTICAS]]<=7,Variables!$F$24,Variables!$F$23))","v":2},{"$f":"Tabla1[[#This Row],[PESO POR JUICIO EXPERTOS]]*Variables!$D$20+Tabla1[[#This Row],[PESO POR PRACTICAS]]*Variables!$D$23","v":6.8},{"$f":"Tabla1[[#This Row],[VALOR POR ESFUERZO]]/100","v":6.8000000000000005E-2},{"$f":"'Nivel de madurez'!F33","v":2},4]
["EDM","EDM03","EDM03 Asegurar la optimización del riesgo","Asegurar que los riesgos relacionados con TI de la empresa no exceden ni el apetito ni la toleración de riesgo, que el impacto de los riesgos de TI en el valor de la empresa se identifica y se gestiona y que el potencial fallo en el cumplimiento se reduce al mínimo.",{"$f":"'Nivel de madurez'!E34","v":3},"NO APLICA",{"$f":"VLOOKUP(Tabla1[[#This Row],[APORTE AL FOCO SEGÚN PROPOSITO]],Variables!$E$13:$F$15,2,1)","v":1},3,{"$f":"IF(Tabla1[[#This Row],[NUMERO DE PRACTICAS]]<=4,Variables!$F$18,IF(Tabla1[[#This Row],[NUMERO DE PRACTICAS]]<=7,Variables!$F$17,Variables!$F$16))","v":2},{"$f":"Tabla1[[#This Row],[PESO DEL APORTE AL FOCO]]*Variables!$D$13+Tabla1[[#This Row],[PESO SEGUN NUMERO DE PRACTICAS]]*Variables!$D$16","v":1.4},"BAJO",{"$f":"VLOOKUP(Tabla1[[#This Row],[DOMINIO]],Variables!$E$4:$F$8,2,1)","v":5},{"$f":"VLOOKUP(Tabla1[[#This Row],[JUICIO EXPERTO NI]],Variables!$E$9:$F$11,2,1)","v":2},{"$f":"Tabla1[[#This Row],[PESO POR DOMINIO]]*Variables!$D$4+Tabla1[[#This Row],[PESO POR EXPERTO]]*Variables!$D$9","v":3.5},"MEDIO",{"$f":"VLOOKUP(Tabla1[[#This Row],[JUICIO EXPERTO NE]],Variables!$E$20:$F$22,2,1)","v":5},{"$f":"IF(Tabla1[[#This Row],[NUMERO DE PRACTICAS]]<=4,Variables!$F$25,IF(Tabla1[[#This Row],[NUMERO DE PRACTICAS]]<=7,Variables!$F$24,Variables!$F$23))","v":2},{"$f":"Tabla1[[#This Row],[PESO POR JUICIO EXPERTOS]]*Variables!$D$20+Tabla1[[#This Row],[PESO POR PRACTICAS]]*Variables!$D$23","v":3.8},{"$f":"Tabla1[[#This Row],[VALOR POR ESFUERZO]]/100","v":3.7999999999999999E-2},{"$f":"'Nivel de madurez'!F34","v":4},4]
["EDM","EDM04","EDM04 Asegurar la optimización de los recursos","Asegurar que las necesidades de recursos de la empresa son cubiertas de un modo óptimo, que el coste TI es optimizado y que con ello se incrementa \nla probabilidad de la obtención de beneficios y la reparación para cambios futuros.",{"$f":"'Nivel de madurez'!E35","v":1},"NO APLICA",{"$f":"VLOOKUP(Tabla1[[#This Row],[APORTE AL FOCO SEGÚN PROPOSITO]],Variables!$E$13:$F$15,2,1)","v":1},3,{"$f":"IF(Tabla1[[#This Row],[NUMERO DE PRACTICAS]]<=4,Variables!$F$18,IF(Tabla1[[#This Row],[NUMERO DE PRACTICAS]]<=7,Variables!$F$17,Variables!$F$16))","v":2},{"$f":"Tabla1[[#This Row],[PESO DEL APORTE AL FOCO]]*Variables!$D$13+Tabla1[[#This Row],[PESO SEGUN NUMERO DE PRACTICAS]]*Variables!$D$16","v":1.4},"BAJO",{"$f":"VLOOKUP(Tabla1[[#This Row],[DOMINIO]],Variables!$E$4:$F$8,2,1)","v":5},{"$f":"VLOOKUP(Tabla1[[#This Row],[JUICIO EXPERTO NI]],Variables!$E$9:$F$11,2,1)","v":2},{"$f":"Tabla1[[#This Row],[PESO POR DOMINIO]]*Variables!$D$4+Tabla1[[#This Row],[PESO POR EXPERTO]]*Variables!$D$9","v":3.5},"ALTO",{"$f":"VLOOKUP(Tabla1[[#This Row],[JUICIO EXPERTO NE]],Variables!$E$20:$F$22,2,1)","v":10},{"$f":"IF(Tabla1[[#This Row],[NUMERO DE PRACTICAS]]<=4,Variables!$F$25,IF(Tabla1[[#This Row],[NUMERO DE PRACTICAS]]<=7,Variables!$F$24,Variables!$F$23))","v":2},{"$f":"Tabla1[[#This Row],[PESO POR JUICIO EXPERTOS]]*Variables!$D$20+Tabla1[[#This Row],[PESO POR PRACTICAS]]*Variables!$D$23","v":6.8},{"$f":"Tabla1[[#This Row],[VALOR POR ESFUERZO]]/100","v":6.8000000000000005E-2},{"$f":"'Nivel de madurez'!F35","v":3},4]
["EDM","EDM05","EDM05 Asegurar la Transparencia hacia las partes interesadas","Asegurar que la comunicación con las partes interesadas sea efectiva y oportuna y que se ha establecido una base para la elaboración de informes con el fin de aumentar el desempeño, identificar áreas susceptibles de mejora y confirmar que las estrategias y los objetivos relacionados con TI concuerdan con la estrategia corporativa.",{"$f":"'Nivel de madurez'!E36","v":2},"INDIRECTO",{"$f":"VLOOKUP(Tabla1[[#This Row],[APORTE AL FOCO SEGÚN PROPOSITO]],Variables!$E$13:$F$15,2,1)","v":6},3,{"$f":"IF(Tabla1[[#This Row],[NUMERO DE PRACTICAS]]<=4,Variables!$F$18,IF(Tabla1[[#This Row],[NUMERO DE PRACTICAS]]<=7,Variables!$F$17,Variables!$F$16))","v":2},{"$f":"Tabla1[[#This Row],[PESO DEL APORTE AL FOCO]]*Variables!$D$13+Tabla1[[#This Row],[PESO SEGUN NUMERO DE PRACTICAS]]*Variables!$D$16","v":4.3999999999999995},"MEDIO",{"$f":"VLOOKUP(Tabla1[[#This Row],[DOMINIO]],Variables!$E$4:$F$8,2,1)","v":5},{"$f":"VLOOKUP(Tabla1[[#This Row],[JUICIO EXPERTO NI]],Variables!$E$9:$F$11,2,1)","v":5},{"$f":"Tabla1[[#This Row],[PESO POR DOMINIO]]*Variables!$D$4+Tabla1[[#This Row],[PESO POR EXPERTO]]*Variables!$D$9","v":5},"MEDIO",{"$f":"VLOOKUP(Tabla1[[#This Row],[JUICIO EXPERTO NE]],Variables!$E$20:$F$22,2,1)","v":5},{"$f":"IF(Tabla1[[#This Row],[NUMERO DE PRACTICAS]]<=4,Variables!$F$25,IF(Tabla1[[#This Row],[NUMERO DE PRACTICAS]]<=7,Variables!$F$24,Variables!$F$23))","v":2},{"$f":"Tabla1[[#This Row],[PESO POR JUICIO EXPERTOS]]*Variables!$D$20+Tabla1[[#This Row],[PESO POR PRACTICAS]]*Variables!$D$23","v":3.8},{"$f":"Tabla1[[#This Row],[VALOR POR ESFUERZO]]/100","v":3.7999999999999999E-2},{"$f":"'Nivel de madurez'!F36","v":3},4]
["MEA","MEA01","MEA01 Supervisar, evaluar y valorar rendimiento y Conformidad","Proporcionar transparencia de rendimiento y conformidad y conducción hacia la obtención de los objetivos.",{"$f":"'Nivel de madurez'!E37","v":2},"INDIRECTO",{"$f":"VLOOKUP(Tabla1[[#This Row],[APORTE AL FOCO SEGÚN PROPOSITO]],Variables!$E$13:$F$15,2,1)","v":6},5,{"$f":"IF(Tabla1[[#This Row],[NUMERO DE PRACTICAS]]<=4,Variables!$F$18,IF(Tabla1[[#This Row],[NUMERO DE PRACTICAS]]<=7,Variables!$F$17,Variables!$F$16))","v":4},{"$f":"Tabla1[[#This Row],[PESO DEL APORTE AL FOCO]]*Variables!$D$13+Tabla1[[#This Row],[PESO SEGUN NUMERO DE PRACTICAS]]*Variables!$D$16","v":5.1999999999999993},"BAJO",{"$f":"VLOOKUP(Tabla1[[#This Row],[DOMINIO]],Variables!$E$4:$F$8,2,1)","v":1},{"$f":"VLOOKUP(Tabla1[[#This Row],[JUICIO EXPERTO NI]],Variables!$E$9:$F$11,2,1)","v":2},{"$f":"Tabla1[[#This Row],[PESO POR DOMINIO]]*Variables!$D$4+Tabla1[[#This Row],[PESO POR EXPERTO]]*Variables!$D$9","v":1.5},"MEDIO",{"$f":"VLOOKUP(Tabla1[[#This Row],[JUICIO EXPERTO NE]],Variables!$E$20:$F$22,2,1)","v":5},{"$f":"IF(Tabla1[[#This Row],[NUMERO DE PRACTICAS]]<=4,Variables!$F$25,IF(Tabla1[[#This Row],[NUMERO DE PRACTICAS]]<=7,Variables!$F$24,Variables!$F$23))","v":4},{"$f":"Tabla1[[#This Row],[PESO POR JUICIO EXPERTOS]]*Variables!$D$20+Tabla1[[#This Row],[PESO POR PRACTICAS]]*Variables!$D$23","v":4.5999999999999996},{"$f":"Tabla1[[#This Row],[VALOR POR ESFUERZO]]/100","v":4.5999999999999999E-2},{"$f":"'Nivel de madurez'!F37","v":3},3]
["MEA","MEA02","MEA02 Supervisar, evaluar y Valorar el sistema de control interno","Ofrecer transparencia a las partes interesadas claves respecto de la adecuación del sistema de control interno para generar confianza en las\noperaciones, en el logro de los objetivos de la compañía y un entendimiento adecuado del riesgo residual.",{"$f":"'Nivel de madurez'!E38","v":4},"INDIRECTO",{"$f":"VLOOKUP(Tabla1[[#This Row],[APORTE AL FOCO SEGÚN PROPOSITO]],Variables!$E$13:$F$15,2,1)","v":6},8,{"$f":"IF(Tabla1[[#This Row],[NUMERO DE PRACTICAS]]<=4,Variables!$F$18,IF(Tabla1[[#This Row],[NUMERO DE PRACTICAS]]<=7,Variables!$F$17,Variables!$F$16))","v":8},{"$f":"Tabla1[[#This Row],[PESO DEL APORTE AL FOCO]]*Variables!$D$13+Tabla1[[#This Row],[PESO SEGUN NUMERO DE PRACTICAS]]*Variables!$D$16","v":6.8},"BAJO",{"$f":"VLOOKUP(Tabla1[[#This Row],[DOMINIO]],Variables!$E$4:$F$8,2,1)","v":1},{"$f":"VLOOKUP(Tabla1[[#This Row],[JUICIO EXPERTO NI]],Variables!$E$9:$F$11,2,1)","v":2},{"$f":"Tabla1[[#This Row],[PESO POR DOMINIO]]*Variables!$D$4+Tabla1[[#This Row],[PESO POR EXPERTO]]*Variables!$D$9","v":1.5},"BAJO",{"$f":"VLOOKUP(Tabla1[[#This Row],[JUICIO EXPERTO NE]],Variables!$E$20:$F$22,2,1)","v":2},{"$f":"IF(Tabla1[[#This Row],[NUMERO DE PRACTICAS]]<=4,Variables!$F$25,IF(Tabla1[[#This Row],[NUMERO DE PRACTICAS]]<=7,Variables!$F$24,Variables!$F$23))","v":8},{"$f":"Tabla1[[#This Row],[PESO POR JUICIO EXPERTOS]]*Variables!$D$20+Tabla1[[#This Row],[PESO POR PRACTICAS]]*Variables!$D$23","v":4.4000000000000004},{"$f":"Tabla1[[#This Row],[VALOR POR ESFUERZO]]/100","v":4.4000000000000004E-2},{"$f":"'Nivel de madurez'!F38","v":4},3]
["MEA","MEA03","MEA03 Supervisar, Evaluar y Valorar la conformidad con los requerimientos Externos","Asegurar que la empresa cumple con todos los requisitos externos que le sean aplicables.",{"$f":"'Nivel de madurez'!E39","v":4},"INDIRECTO",{"$f":"VLOOKUP(Tabla1[[#This Row],[APORTE AL FOCO SEGÚN PROPOSITO]],Variables!$E$13:$F$15,2,1)","v":6},4,{"$f":"IF(Tabla1[[#This Row],[NUMERO DE PRACTICAS]]<=4,Variables!$F$18,IF(Tabla1[[#This Row],[NUMERO DE PRACTICAS]]<=7,Variables!$F$17,Variables!$F$16))","v":2},{"$f":"Tabla1[[#This Row],[PESO DEL APORTE AL FOCO]]*Variables!$D$13+Tabla1[[#This Row],[PESO SEGUN NUMERO DE PRACTICAS]]*Variables!$D$16","v":4.3999999999999995},"BAJO",{"$f":"VLOOKUP(Tabla1[[#This Row],[DOMINIO]],Variables!$E$4:$F$8,2,1)","v":1},{"$f":"VLOOKUP(Tabla1[[#This Row],[JUICIO EXPERTO NI]],Variables!$E$9:$F$11,2,1)","v":2},{"$f":"Tabla1[[#This Row],[PESO POR DOMINIO]]*Variables!$D$4+Tabla1[[#This Row],[PESO POR EXPERTO]]*Variables!$D$9","v":1.5},"BAJO",{"$f":"VLOOKUP(Tabla1[[#This Row],[JUICIO EXPERTO NE]],Variables!$E$20:$F$22,2,1)","v":2},{"$f":"IF(Tabla1[[#This Row],[NUMERO DE PRACTICAS]]<=4,Variables!$F$25,IF(Tabla1[[#This Row],[NUMERO DE PRACTICAS]]<=7,Variables!$F$24,Variables!$F$23))","v":2},{"$f":"Tabla1[[#This Row],[PESO POR JUICIO EXPERTOS]]*Variables!$D$20+Tabla1[[#This Row],[PESO POR PRACTICAS]]*Variables!$D$23","v":2},{"$f":"Tabla1[[#This Row],[VALOR POR ESFUERZO]]/100","v":0.02},{"$f":"'Nivel de madurez'!F39","v":5},4]
[]
[]
[]
[]
[]
[null,"DIRECTO",{"$f":"COUNTIF(Tabla1[APORTE AL FOCO SEGÚN PROPOSITO],B45)","v":3}]
[null,"INDIRECTO",{"$f":"COUNTIF(Tabla1[APORTE AL FOCO SEGÚN PROPOSITO],B46)","v":19}]
[null,"NO APLICA",{"$f":"COUNTIF(Tabla1[APORTE AL FOCO SEGÚN PROPOSITO],B47)","v":15}]

{"sheet":"Matriz de procesos-Gráfica","index":4,"n_rows":52,"n_cols":16,"rows_kept":52,"cut":false,"hidden":false,"merged":[[1,1,1,18],[3,15,22,17],[41,10,42,11],[41,12,42,13],[43,10,44,11],[43,12,44,13],[41,3,42,4],[43,3,44,4],[41,5,42,6],[43,5,44,6]]}
[]
[null,"MATRIZ DE CLASIFICACIÓN Y PRIORIZACIÓN DE PROCESOS COBIT"]
[]
[null,null,null,null,null,null,null,null,null,null,null,null,null,null,null,"Instrucciones:\n\n1. Verifique que el nivel de madurez esté completamente diligenciado (hoja Nivel de madurez).\n\n2. Para borrar la clasificación de la gráfica actual, presione el botón <<Borrar clasificación>>.\n\n3. Para generar una nueva gráfica de la clasificación, presione el botón <<Generar clasificación>>.\n\n4. Puede realizar los filtros en la Matriz de los procesos (hoja Matriz) y visualizar los cambios de manera automática."]
[]
[]
[]
[]
[]
[]
[]
[]
[]
[]
[]
[]
[]
[]
[]
[]
[]
[]
[]
[]
[]
[]
[]
[]
[]
[]
[]
[]
[]
[]
[]
[]
[]
[]
[]
[]
[]
[null,null,null,"Q3",null,"Q1",null,null,null,null,{"$f":"COUNTIF(Matriz!U3:U39,\"=3\")","v":4},null,{"$f":"COUNTIF(Matriz!U3:U39,\"=1\")","v":13}]
[]
[null,null,null,"Q4",null,"Q2",null,null,null,null,{"$f":"COUNTIF(Matriz!U3:U39,\"=4\")","v":16},null,{"$f":"COUNTIF(Matriz!U3:U39,\"=2\")","v":4}]
[]
[]
[null,null,null,null,null,null,null,null,null,null,"Cuadrante","% Procesos","# Procesos"]
[null,null,null,null,null,null,null,null,null,null,"Q 1",{"$f":"M48/$M$52","v":0.35135135135135137},{"$f":"M42","v":13}]
[null,null,null,null,null,null,null,null,null,null,"Q2",{"$f":"M49/$M$52","v":0.10810810810810811},{"$f":"M44","v":4}]
[null,null,null,null,null,null,null,null,null,null,"Q3",{"$f":"M50/$M$52","v":0.10810810810810811},{"$f":"K42","v":4}]
[null,null,null,null,null,null,null,null,null,null,"Q4",{"$f":"M51/$M$52","v":0.43243243243243246},{"$f":"K44","v":16}]
[null,null,null,null,null,null,null,null,null,null,"Total",null,{"$f":"SUM(M48:M51)","v":37}]

{"sheet":"Brechas","index":5,"n_rows":18,"n_cols":12,"rows_kept":18,"cut":false,"hidden":false,"merged":[]}
[null,"Dominio","Proceso ","Nombre del Proceso","Código de práctica de Gestión","Nombre de Práctica de Gestión","Descripción de la práctica","Salidas de la práctica","Entregables","Apoyo al nivel de capacidad","Tipo de entregable","Responsable"]
[null,"APO","APO01","Gestionar el marco de Gestión de TI","APO01.01","Definir la estructura organizativa","Establecer una estructura organizativa interna y extensa que refleje las necesidades del negocio y las prioridades de TI. Implementar las estructuras de gestión requeridas (p. ej., comités) para permitir que la toma de decisiones se lleve a cabo de la forma más eficaz y eficiente posible.","1. Estructura organizacional: Definición de estructura y funciones organizativas\n2. Estructura de control de gestión: Directrices operativas de la organización\n3. Plan de comunicación: Reglas básicas de comunicación","1. Modelo de gobierno de TI:\n1.1 Misión de TI\n1.2 Visión de TI\n1.3 Valores de TI\n1.4 Focos estratégicos de TI \n1.5 Estructura de TI\n1.6 Roles y Responsabilidades\n1.7 Estructura de control de gestión (comités y reuniones de TI)\n1.8 Plan de comunicaciones\n1.10 Mapa de procesos de Tecnología: validar en donde esta la definición de los procesos de COBIT, debería quedar dentro de \"formular la estrategia\" con el fin de que se reflejen los procesos \n1.11 Modelo operativo: forma de operar de la TI (federado, hibrido, centralizado o descentralizado)",1,"Requerido","Jefe de RH\nJefe de TI"]
[null,"APO","APO01","Gestionar el marco de Gestión de TI","APO01.02","Establecer roles y responsabilidades","Establecer, acordar y comunicar roles y responsabilidades del personal de TI, así como de otras partes interesadas con responsabilidades en las TI corporativas, que reflejen claramente las necesidades generales del negocio y los objetivos de TI, así como la autoridad, las responsabilidades y la rendición de cuentas del personal relevante.","1. Roles y responsabilidades: Definición de roles y responsabilidades relativos a TI\n2. Manual de delegación: Definición de prácticas de supervisión","1. Modelo de gobierno de TI:\n1.6 Roles y Responsabilidades\n1.9 Manual de delegación",1,"Requerido","Jefe de TI"]
[null,"APO","APO01","Gestionar el marco de Gestión de TI","APO01.03","Mantener los elementos catalizadores del sistema de gestión","Mantener los elementos catalizadores del sistema de gestión y del entorno de control de la TI de la empresa y garantizar que están integrados y alineados con la filosofía y el estilo operativo de gobierno y de gestión de la empresa. Estos elementos catalizadores incluyen una comunicación clara de expectativas/requisitos. El sistema de gestión debería fomentar la cooperación interdepartamental y el trabajo en equipo, promover el cumplimiento y la mejora continua y tratar las desviaciones en el proceso (incluidos los fallos).","1.Politicas de TI: Políticas relativas a TI","1. Políticas de TI: listar los documentos existentes\n- coso\n- Seguridad de la información\n- Uso de activos\n- Controles internos\n- Propiedad intelectual \n- Tratamiento de datos personales\n- Cada política debe especificar que se revise una vez al año como mínimo\n2. Gestión de controles: validar con gisella como se esta llevando a cabo y donde esta este procedimiento establecido. Debe tener una periocidad definida, evidencia solicitada, ubicación de la información, acciones definidadas en caso de no cumplimiento",2,"Sugerido","Director de Operaciones (COO)\nDirector de Informática/Sistemas (CIO)"]
[null,"APO","APO01","Gestionar el marco de Gestión de TI","APO01.04","Comunicar los objetivos y la dirección de gestión","Comunicar la sensibilización y la comprensión de los objetivos y la dirección de TI a las partes interesadas y usuarios pertinentes a lo largo de toda la empresa.","1. Plan de comunicaciones: Comunicación de objetivos de TI","1. Ejecución plan de comunicación\n- Material de comunicación\n- Evidencias de ejecución de las comunicaciones\n- Ubicación de la documentación recolectada",2,"Sugerido","Director General Financiero (CFO)\nDirector de Operaciones (COO)\nEjecutivos de Negocio\nComité Ejecutivo Estratégico\nDirector de Riesgos (CRO)\nDirector de Seguridad de la Información (CISO)\nDirector de Informática/Sistemas (CIO)"]
[null,"APO","APO01","Gestionar el marco de Gestión de TI","APO01.05","Optimizar la ubicación de la función de TI","Posicionar la capacidad de TI en la estructura organizativa global para reflejar en el modelo de empresa la importancia de TI en la organización, especialmente su criticidad para la estrategia empresarial y el nivel de dependencia de TI. La línea de reporte del CIO debe ser proporcional a la importancia de las TI en la empresa","1. Análisis estratégico de TI: Evaluación de las opciones para la organización de TI\n2. Modelo operativo: Definir la función operacional de las funciones de TI","1. Plan estratégico de TI: Pedir el documento del plan estratégico entregado por Everis\n- Como se alinea la TI con la estrategia empresarial\n- Vigencia del plan \n- como se configura el área de TI (modelo operativo)\n- Proceso definido: generar un proceso para generar el PETI. Dentro del mapa de procesos general en la definición de la estrategia el nivel 1 para generar el PETI",3,"Sugerido","Director de Informática/Sistemas (CIO)\nJefe de Administración TI"]
[null,"APO","APO01","Gestionar el marco de Gestión de TI","APO01.06","Definir la propiedad de la información (datos) y del sistema","Definir y mantener las responsabilidades de la propiedad de la información (datos) y los sistemas de información. Asegurar que los propietarios toman decisiones sobre la clasificación de la información y los sistemas y su protección de acuerdo con esta clasificación","1. Tratamiento de los datos: Directrices para la clasificación de datos\n2. Seguridad de información: Directrices para el control y seguridad de datos\n3. Seguridad de la información: Procedimientos de integridad de datos","1. Protección de datos: pedir lo de la consultoría Everis\n- Políticas y directrices\n- Implementación de las políticas y directrices\n- Procedimientos para asegurar la sostenibilidad de la implementación realizada",3,"Sugerido","Propietarios de los Procesos de Negocio"]
[null,"APO","APO01","Gestionar el marco de Gestión de TI","APO01.07","Gestionar la mejora continua de los procesos","Evaluar, planificar y ejecutar la mejora continua de procesos y su madurez para asegurar que son capaces de entregarse conforme a los objetivos de la empresa, de gobierno, de gestión y de control. Considerar las directrices de la implementación de procesos de COBIT, estándares emergentes, requerimientos de cumplimiento, oportunidades de automatización y la realimentación de los usuarios de los procesos, el equipo del proceso y otras partes interesadas. Actualizar los procesos y considerar el impacto en los catalizadores del proceso","1. Capacidad de procesos: Evaluaciones de la capacidad de los procesos\n2. Mejora de procesos: Oportunidades de mejoras de proceso\n3. Rendimiento de procesos: Objetivos y métricas de rendimiento para el seguimiento de la mejora de procesos","1. Análisis de capacidad de procesos de gobierno y gestión de TI: \nRealizar según la vigencia del PETI el análisis de los procesos, donde se evalue el nivel de madurez, identificando las oportunidades de mejora y definiendo el nivel objetivo deseado",5,"Sugerido","Propietarios de los Procesos de Negocio\nOficina de Gestión de Proyectos\nDirector de Informática/Sistemas (CIO)\nJefe de Arquitectura del Negocio\nJefe de Desarrollo\nJefe de Operaciones TI\nJefe de Administración TI\nGestor de Servicio (Service Manager)\nGestor de Seguridad de la Información\nGestor de Continuidad de Negocio"]
[null,"APO","APO01","Gestionar el marco de Gestión de TI","APO01.08","Mantener el cumplimiento con las políticas y procedimientos","Poner en marcha procedimientos para mantener el cumplimiento y medición del funcionamiento de las políticas y otros catalizadores del marco de referencia; hacer cumplir las consecuencias del no cumplimiento o del desempeño inadecuado. Seguir las tendencias y el rendimiento y considerarlos en el diseño futuro y la mejora del marco de control","1. Gestión de cumplimiento: Acciones de remediación por no cumplimiento","1. Riesgos y controles:\n- Informe de cumplimiento: se refleja el nivel de cumplimiento de las políticas y directrices de TI\n- Plan de acción e informe de cierre para lo no cumplido",4,"Sugerido","Propietarios de los Procesos de Negocio\nOficina de Gestión de Proyectos\nConsejo de Arquitectura de la Empresa\nJefe de Recursos Humanos\nDirector de Informática/Sistemas (CIO)\nJefe de Arquitectura del Negocio\nJefe de Desarrollo\nJefe de Operaciones TI\nJefe de Administración TI\nGestor de Servicio (Service Manager)\nGestor de Seguridad de la Información\nGestor de Continuidad de Negocio"]
[null,"APO","APO02","Gestionar la Estrategia","APO02.01","Comprender la dirección de la\nempresa","Considerar el entorno actual y los procesos de negocio de la empresa, así como la estrategia y los objetivos futuros de la compañía. Tomar también en cuenta el entorno externo a ella (motivadores de la industria, reglamentos relevantes, bases para la competencia)","1. Fuentes y prioridades para cambios"]
[null,"APO","APO02","Gestionar la Estrategia","APO02.02","Evaluar el entorno,  \ny rendimiento actuales.","Evaluar el rendimiento del negocio interno actual y las capacidades de TI y los servicios externos de TI para desarrollar un entendimiento de la arquitectura empresarial en relación con TI. Identificar los problemas que se están experimentando y generar recomendaciones en las áreas que pueden beneficiarse de estas mejoras. Considerar los aspectos\ndiferenciadores y las opciones de proveedores de servicios y el impacto financiero, los costes y los beneficios potenciales de utilizar servicios externos","1. Línea de referencia de capacidades actuales\n2. Diferencias y riesgos relacionados con las\ncapacidades actuales \n3. Análisis DAFO de capacidades"]
[null,"APO","APO02","Gestionar la Estrategia","APO02.03","Definir el objetivo de las \ncapacidades de TI.","Definir el objetivo del negocio, las capacidades de TI y los servicios de TI necesarios. Esto debería estar basado en el entendimiento del entorno empresarial y sus necesidades; la evaluación de los actuales procesos de negocio, el entorno de TI y los problemas presentados; considerando los estándares de referencia, las mejores prácticas y las tecnologías emergentes o propuestas de innovación","1. Objetivos de TI a alto nivel\n2. Req3. Propuesta de cambio en la\narquitectura del negociouerimientos del negocio y capacidades de TI\n"]
[null,"APO","APO02","Gestionar la Estrategia","APO02.04","Realizar un análisis de\ndiferencias","Identificar las diferencias entre el entorno actual y el deseado y considerar la alineación de activos (las capacidades que soportan los servicios) con los resultados de negocio para optimizar la inversión y la utilización de la base de activos internos y externos. Considerar los factores críticos de éxito que apoyan la ejecución de la estrategia ","1. Diferencias y cambios requeridos para alcanzar la meta de capacidad\n2. Declaración del valor beneficio para el entorno deseado"]
[null,"APO","APO02","Gestionar la Estrategia","APO02.05","Definir el plan estratégico y la\nhoja de ruta.","Crear un plan estratégico que defina, en cooperación con las partes interesadas más relevantes, cómo los objetivos de TI contribuirán a los objetivos estratégicos de la empresa. Incluyendo cómo TI apoyará el programa aprobado de inversiones, los procesos de negocio, servicios y activos de TI. Orientar las tecnologías para definir las iniciativas que se requieren para cerrar las diferencias, la estrategia de abastecimiento y las medidas que se utilizarán para supervisar el logro de los objetivos, para dar prioridad a las iniciativas y combinarlas en una hoja de ruta a alto nivel","1. Definición de iniciativas estratégicas\n2. Evaluación de riesgo\n3. Hoja de ruta estratégica"]
[null,"APO","APO02","Gestionar la Estrategia","APO02.06","Comunicar la estrategia y la dirección de TI.","Crear conciencia y comprensión del negocio y de los objetivos y dirección de TI, como se encuentra reflejada en la estrategia de TI, a través de comunicaciones a las partes interesadas adecuadas y a los usuarios de toda la empresa","1. Plan de comunicación\n2. Paquete de comunicación"]
[null,"EDM","EDM01","Asegurar el establecimiento y mantenimiento del marco\nde referencia de gobierno","EDM01.01","Evaluar el sistema de gobierno","Identificar y comprometerse continuamente con las partes interesadas de la empresa, documentar la comprensión de los requerimientos y realizar una estimación del actual y futuro diseño del gobierno de TI de la empresa","1. Principios directrices del gobierno de la empresa\n2. Modelo de toma de decisiones\n3. Niveles de autoridad"]
[null,"EDM","EDM01","Asegurar el establecimiento y mantenimiento del marco\nde referencia de gobierno","EDM01.02","Orientar el sistema de gobierno","Informar a los líderes y obtener su apoyo, su aceptación y su compromiso. Guiar las estructuras, procesos y prácticas para el gobierno de TI en línea con los principios, modelos para la toma de decisiones y niveles de autoridad diseñados para el gobierno. Definir la información necesaria para una toma de decisiones informadas","1. Comunicaciones del gobierno de la empresa\n2. Enfoque de sistema de recompensa"]
[null,"EDM","EDM01","Asegurar el establecimiento y mantenimiento del marco\nde referencia de gobierno","EDM01.03","Supervisar el sistema de gobierno","Supervisar la ejecución y la efectividad del gobierno de TI de la empresa. Analizar si el sistema de gobierno y los mecanismos implementados (incluyendo estructuras, principios y procesos) están operando de forma efectiva y proporcionan una supervisión apropiada de TI","1. Retroalimentación sobre el rendimiento y efectividad del gobierno"]

{"sheet":"Variables","index":6,"n_rows":25,"n_cols":6,"rows_kept":25,"cut":false,"hidden":false,"merged":[[1,1,1,5],[19,1,24,1],[19,2,21,2],[19,3,21,3],[22,2,24,2],[22,3,24,3],[3,1,10,1],[3,2,7,2],[3,3,7,3],[8,2,10,2],[8,3,10,3],[12,2,14,2],[15,2,17,2],[12,1,17,1],[12,3,14,3],[15,3,17,3]]}
[]
[null,"VARIABLES BASICAS DEL MODELO"]
[]
[null,"Nivel de importancia del proceso","Relevancia asignada al dominio de procesos",0.5,"APO",{"$f":"'Foco de análisis'!D23","v":10}]
[null,null,null,null,"BAI",{"$f":"'Foco de análisis'!D24","v":7}]
[null,null,null,null,"DSS",{"$f":"'Foco de análisis'!D25","v":3}]
[null,null,null,null,"EDM",{"$f":"'Foco de análisis'!D26","v":5}]
[null,null,null,null,"MEA",{"$f":"'Foco de análisis'!D27","v":1}]
[null,null,"Relevancia del proceso para el foco de análisis",0.5,"ALTO",9]
[null,null,null,null,"BAJO",2]
[null,null,null,null,"MEDIO",5]
[]
[null,"Nivel de aporte al foco de análisis","Aporte según el propósito del proceso",0.6,"DIRECTO",10]
[null,null,null,null,"INDIRECTO",6]
[null,null,null,null,"NO APLICA",1]
[null,null,"Aporte según el número de prácticas de gestión del proceso",0.4,"ALTO [>=8]",8]
[null,null,null,null,"MEDIO [5-7]",4]
[null,null,null,null,"BAJO [<=4]",2]
[]
[null,"Nivel de esfuerzo para la implementación del proceso","Esfuerzo para madurar el proceso al nivel objetivo",0.6,"ALTO",10]
[null,null,null,null,"BAJO",2]
[null,null,null,null,"MEDIO",5]
[null,null,"Esfuerzo para desarrollar las prácticas de gestión del proceso",0.4,"ALTO [>=8]",8]
[null,null,null,null,"MEDIO [5-7]",4]
[null,null,null,null,"BAJO [<=4]",2]